Workbook

Sheet MES
L2: メインメニューへ戻る
C6: ★マクロを有効にしてファイルを開く方法★
C9: マクロを有効にしてファイルを開くことが出来ない場合、以下の設定をして下さい。。
C72: 【Excel2007の場合】
C74: <オフィス>ボタン（画面左上の丸いボタン)をクリックして、［Excelのオプション(I)］ボタンを
C75: クリックします。
C104: 画面左側の［セキュリティ センター］タグの［セキュリティ センターの設定(T)］を
C105: クリックして下さい。
C130: 画面左の［マクロの設定］タグを選択し、以下の項目をチェックして下さい。
C131: ・「すべてのマクロを有効にする（推奨しません。危険なコードが実行される可能性があります）(E)」
C132: ・「VBAプロジェクト オブジェクト モデルへのアクセスを信頼する(V)」
C163: 【Excel2010/2013の場合】
C166: メニューバーから 「ファイル」 の 「オプション」 をクリックします。
C197: 『Excelのオプション』画面が表示されましたら、画面左側の「セキュリティ センター」を
C198: クリックして、[セキュリティ センターの設定（Ｔ）]ボタンをクリックして下さい。
C225: 『セキュリティ センター』画面が表示されましたら、画面左側の「メッセージ バー」をクリックして
C226: 「ActiveX コントロールやマクロなどのアクティブ コンテンツがブロックされた場合、すべての
C227: アプリケーションにメッセージを表示する（Ｓ）｣をクリックして下さい。
C251: 次に、画面左側の｢マクロの設定」をクリックして、「警告を表示してすべてのマクロを無効にする（Ｄ）」を
C252: クリックして、［ＯＫ］ボタンで設定画面を閉じて下さい。
C282: 以上の設定が完了しましたら本システムを開いた時に、画面上部に「セキュリティの警告」が表示され
C283: ますので、[コンテンツの有効化]ボタンをクリックして下さい。

Sheet MAIN
E12: Aqua10 共同研究第１研究委員会
E16: 作成年月：平成２３年10月
E17: 改 訂：平成２６年 ３月
F26: ※必ずマクロを有効にして作業してください。
F28: マクロを有効にするには．．．
D31: 本シミュレータを使って得られた結果について、著作者は一切の責任を負いません。
D32: 本シミュレータの改変、再配布を禁じます。

Sheet 基本情報 (hidden)
G2: 基本情報
D6: 基本情報
F9: 作成日
F10: 事業体名
F11: 所在地 | H11: 都道府県
F13: 記入者
F14: 所属
F15: 連絡先

Sheet 入力情報(1) (hidden)
G2: 入力情報（１）
D19: Ⅰ.浄水場の情報
I21: ※：入力必須項目
E22: 1. | F22: 浄水場名
D23: ※ | E23: 2. | F23: 現在の浄水量（日最大）
F24: 更新する場合の浄水量 | H24: =IF('入力情報(2)'!H6<>"",'入力情報(2)'!H6,"") ->  | J24: 入力は次画面『入力情報(２)』にて行って下さい
D25: ※ | E25: 3. | F25: 現在の給水人口
D26: ※ | E26: 4. | F26: 給水原価
E27: 5. | F27: 原水種類
D28: ※ | E28: 6. | F28: 浄水フロー
D29: ※ | E29: 7. | F29: 粉末炭の有無
F30: 粉末炭平均注入率
F31: 粉末炭注入日数
D32: ※ | E32: 8. | F32: 主要設備の最小系列数
E33: 9. | F33: その系列名称
F34: その他内容
E35: 10. | F35: メンテナンスレベル | H35: =+メンテナンスレベル!G29 -> 0
D37: Ⅱ.設備分類毎の情報
E38: ここでの建設（更新）年は、主たる設備、機器を取得した年を入力（選択）して下さい。 また、取得金額は主たる設備、機器他のおおよその金額を入力（台帳からの転記あるいは参照入力）して下さい。
I39: ※：入力必須項目
H40: 建設(更新)年 | I40: 取得金額
D41: ※ | E41: 11. | F41: 建築構造物 | J41: 千円
D42: ※ | E42: 12. | F42: 土木構造物 | J42: 千円
D43: ※ | E43: 13. | F43: 電気設備 | J43: 千円
D44: ※ | E44: 14. | F44: 機械設備 | J44: 千円
D45: ※ | E45: 15. | F45: 計装設備 | J45: 千円

Sheet 入力情報(2) (hidden)
G2: 入力情報（２）
D5: Ⅲ.浄水量の情報
E6: 16. | F6: 更新する場合の浄水量
D8: Ⅳ.推奨浄水プロセスの情報
G9: 原水レベル | H9: 原水レベル | I9: 浄水レベル
G10: 現状の原水水質 | H10: 将来予想される原水水質 | I10: 要求される浄水水質
E11: 17. | F11: 濁度 | T11: =IF(AND(G11<>"",G12<>"",G13<>"",G14<>""),1,0) -> 0
E12: 18. | F12: TOC | T12: =IF(AND(H11<>"",H12<>"",H13<>"",H14<>""),1,0) -> 0
E13: 19. | F13: カビ臭 | T13: =IF(AND(I11<>"",I12<>"",I13<>"",I14<>""),1,0) -> 0
E14: 20. | F14: THMFP
E15: ※「現状の原水水質」、「将来予想される原水水質」の”どちらか一方”もしくは”両方”入力して下さい。
E17: プロセス選定
G18: 原水レベル | H18: 浄水レベル | I18: 推奨プロセス
C19: 濁度 | G19: =IF(ISERROR(Calc!D12),"",Calc!D12) ->  | H19: =IF(ISERROR(Calc!E12),"",Calc!E12) ->  | I19: =IF(ISERROR(Calc!F12),"",Calc!F12) -> 
C20: 有機物 | F20: TOC | G20: =IF(ISERROR(Calc!D13),"",Calc!D13) ->  | H20: =IF(ISERROR(Calc!E13),"",Calc!E13) ->  | I20: =IF(ISERROR(Calc!F13),"",Calc!F13) -> 
F21: カビ臭 | G21: =IF(ISERROR(Calc!D14),"",Calc!D14) ->  | H21: =IF(ISERROR(Calc!E14),"",Calc!E14) ->  | I21: =IF(ISERROR(Calc!F14),"",Calc!F14) -> 
F22: THM | G22: =IF(ISERROR(Calc!D15),"",Calc!D15) ->  | H22: =IF(ISERROR(Calc!E15),"",Calc!E15) ->  | I22: =IF(ISERROR(Calc!F15),"",Calc!F15) -> 
E25: 希望フロー | G25: ※「推奨プロセス」を参考に入力下さい。
E26: 21. | F26: 希望フロー
F27: 粉末炭平均注入率
F28: 粉末炭注入日数
E30: 全ての水質項目に対して処理プロセスが不要となった場合、原水が地下水で鉄、マンガンを含むときは 希望フロー「凝集＋急速ろ過」を選択して下さい。
D33: Ⅴ.シナリオの選択
E35: 次回更新年
A37: シナリオ非表示理由 | F37: シナリオ１ 更新しない場合（修繕のみで対応） | T37: TRUE
A38: ■｢2.現在の浄水量｣ 又は ｢6.浄水 フロー｣が未入力 | T38: FALSE
A39: ■｢2.現在の浄水量｣ 又は ｢6.浄水 フロー｣が未入力 | T39: FALSE
A40: ■｢2.現在の浄水量｣ 又は ｢6.浄水 フロー｣が未入力 | T40: FALSE
A41: ■｢2.現在の浄水量｣ 又は ｢6.浄水 フロー｣が未入力 | T41: FALSE

Sheet メンテナンスレベル (hidden)
C1: メンテナンスレベルスコア評価基準
C3: 最も近いと思われる評価レベルをチェックして下さい。全ての評価項目をチェックしないと、評価ポイントは有効となりません。
C4: 評価項目 | D4: 評価レベル | G4: score | H4: スコア
C5: 技術スタッフの充実度 | E5: 維持管理を行うための技術スタッフが必要十分数確保されている | G5: 100 | H5: =IF(O5=1,100,IF(O5=2,80,IF(O5=3,40,IF(O5=4,20,0)))) -> 0
E6: 維持管理を行うための技術スタッフがある程度確保されている | G6: 80
E7: 維持管理を行うための技術スタッフが十分ではない。 | G7: 40
E8: 維持管理を行うための技術スタッフが明らかに不足している。 | G8: 20
C9: 予防保全への取り組み | E9: 故障が発生する前に部品交換やオーバーホール等の必要な対応を行っている。 | G9: 100 | H9: =IF(O9=1,100,IF(O9=2,80,IF(O9=3,40,IF(O9=4,20,0)))) -> 0
E10: どちらかというと，故障が発生する前に部品交換やオーバーホール等の必要な対応を行っている。 | G10: 80
E11: 事故や故障が発生してからの対応がほとんどである。 | G11: 40
E12: いつも事故や故障が発生してから対応している。対応が遅れる場合もある。 | G12: 20
C13: マニュアルの充実度 | E13: 施設点検等に必要なマニュアルやチェックシートが充実している。また，内容も適宜更新されている。 | G13: 100 | H13: =IF(O13=1,100,IF(O13=2,80,IF(O13=3,40,IF(O13=4,20,0)))) -> 0
E14: 施設点検等に必要なマニュアルやチェックシートがあるが，見直しを行う必要を感じている。 | G14: 80
E15: 施設点検等に必要なマニュアルを作成中，あるいは作成する必要性を認識している。 | G15: 40
E16: 施設点検等に必要なマニュアルがない。どのように作成したらよいかわからない。 | G16: 20
C17: 点検・修繕履歴の管理 | E17: 点検・修繕履歴を適切に管理し，過去の履歴から将来の施設整備計画を策定している。 | G17: 100 | H17: =IF(O17=1,100,IF(O17=2,80,IF(O17=3,40,IF(O17=4,20,0)))) -> 0
E18: 点検・修繕履歴を管理しているが，管理面での課題もある。 | G18: 80
E19: 点検・修繕履歴をある程度は管理しているが，過去の履歴で逸散してしまったものも多い。 | G19: 40
E20: 点検・修繕履歴を適切を管理していない。過去の履歴もほとんどが逸散している。 | G20: 20
C21: 更新・修繕等の状況 | E21: 必要な修繕が確実に行われ，独自の基準に基づき施設が適切に更新されている。 | G21: 100 | H21: =IF(O21=1,100,IF(O21=2,80,IF(O21=3,40,IF(O21=4,20,0)))) -> 0
E22: 必要に応じて修繕が行われ，施設更新もある程度実施されている。 | G22: 80
E23: 必要最低限の修繕が行われ，施設更新の明確な基準もない。 | G23: 40
E24: 必要な修繕も先送りされることが多く，法定耐用年数を大きく超えて施設運用がなされている。 | G24: 20
C25: 更新・修繕等に必要な予算 | E25: 更新・修繕等に必要な予算が確実に認められている。 | G25: 100 | H25: =IF(O25=1,100,IF(O25=2,80,IF(O25=3,40,IF(O25=4,20,0)))) -> 0
E26: 更新・修繕等に必要な予算はほぼ認められている。 | G26: 80
E27: 更新・修繕に必要な予算は最低限度認められている。 | G27: 40
E28: 更新・修繕等に必要な予算がほとんど認められていない。 | G28: 20
F29: 評価ポイント | G29: =SUM(H5:H28) -> 0

Sheet プレビュー (hidden)
C5: 入力データの確認 及び シミュレート実行
D7: 基本情報
F9: 作成日 | G9: =基本情報!G9 -> 00:00:00
F10: 事業体名 | G10: =基本情報!G10 -> 0
F11: 所在地 | G11: =IF(基本情報!G11<>"","〒"&基本情報!G11,"")&" "&基本情報!I11&基本情報!G12:I12 -> 
F12: 記入者 | G12: =基本情報!G13 -> 0
F13: 所属 | G13: =基本情報!G14 -> 0
F14: 連絡先 | G14: =基本情報!G15 -> 0
D17: Ⅰ.浄水場の情報
E19: 1. | F19: 浄水場名 | G19: ='入力情報(1)'!G22 -> 0
E20: 2. | F20: 現在の浄水量（日最大） | H20: ='入力情報(1)'!H23 -> 0 | J20: m3/d
E21: 3. | F21: 現在の給水人口 | H21: ='入力情報(1)'!H25 -> 0 | J21: 人
E22: 4. | F22: 給水原価 | H22: ='入力情報(1)'!H26 -> 0 | J22: 円/ｍ3
E23: 5. | F23: 原水種類 | H23: ='入力情報(1)'!H27 -> 0
E24: 6. | F24: 浄水フロー | H24: ='入力情報(1)'!H28 -> 0
E25: 7. | F25: 粉末炭の有無 | H25: ='入力情報(1)'!H29 -> 0
F26: 粉末炭平均注入率 | H26: ='入力情報(1)'!H30 -> 0
F27: 粉末炭注入日数 | H27: ='入力情報(1)'!H31 -> 0
E28: 8. | F28: 主要設備の最小系列数 | H28: ='入力情報(1)'!H32 -> 0
E29: 9. | F29: その系列名称 | H29: ='入力情報(1)'!H33 -> 0
F30: その他内容 | H30: ='入力情報(1)'!H34 -> 0
E31: 10. | F31: メンテナンスレベル | H31: ='入力情報(1)'!H35 -> 0
D34: Ⅱ.設備分類毎の情報
H36: 建設(更新)年 | I36: 取得金額
E37: 11. | F37: 建築構造物 | H37: ='入力情報(1)'!H41 -> 0 | I37: =IF(AND(LEN('入力情報(1)'!I41)=1,'入力情報(1)'!I41=0),"0",'入力情報(1)'!I41) -> 0 | J37: 千円
E38: 12. | F38: 土木構造物 | H38: ='入力情報(1)'!H42 -> 0 | I38: =IF(AND(LEN('入力情報(1)'!I42)=1,'入力情報(1)'!I42=0),"0",'入力情報(1)'!I42) -> 0 | J38: 千円
E39: 13. | F39: 電気設備 | H39: ='入力情報(1)'!H43 -> 0 | I39: =IF(AND(LEN('入力情報(1)'!I43)=1,'入力情報(1)'!I43=0),"0",'入力情報(1)'!I43) -> 0 | J39: 千円
E40: 14. | F40: 機械設備 | H40: ='入力情報(1)'!H44 -> 0 | I40: =IF(AND(LEN('入力情報(1)'!I44)=1,'入力情報(1)'!I44=0),"0",'入力情報(1)'!I44) -> 0 | J40: 千円
E41: 15. | F41: 計装設備 | H41: ='入力情報(1)'!H45 -> 0 | I41: =IF(AND(LEN('入力情報(1)'!I45)=1,'入力情報(1)'!I45=0),"0",'入力情報(1)'!I45) -> 0 | J41: 千円
D43: Ⅲ.浄水量の情報
E45: 16. | F45: 更新する場合の浄水量 | H45: =+'入力情報(2)'!H6 -> 0 | I45: m3/d
D47: Ⅳ.推奨浄水プロセスの情報
G49: ='入力情報(2)'!G10 -> 現状の原水水質 | H49: ='入力情報(2)'!H10 -> 将来予想される原水水質 | I49: ='入力情報(2)'!I10 -> 要求される浄水水質
E50: 17. | F50: 濁度 | G50: ='入力情報(2)'!G11 -> 0 | H50: ='入力情報(2)'!H11 -> 0 | I50: ='入力情報(2)'!I11 -> 0
E51: 18. | F51: TOC | G51: ='入力情報(2)'!G12 -> 0 | H51: ='入力情報(2)'!H12 -> 0 | I51: ='入力情報(2)'!I12 -> 0
E52: 19. | F52: カビ臭 | G52: ='入力情報(2)'!G13 -> 0 | H52: ='入力情報(2)'!H13 -> 0 | I52: ='入力情報(2)'!I13 -> 0
E53: 20. | F53: THMFP | G53: ='入力情報(2)'!G14 -> 0 | H53: ='入力情報(2)'!H14 -> 0 | I53: ='入力情報(2)'!I14 -> 0
E55: 21. | F55: 希望フロー | G55: =+'入力情報(2)'!G26 -> 0
F56: 粉末炭平均注入率 | H56: =+'入力情報(2)'!H27 -> 0 | I56: mg／ℓ
F57: 粉末炭注入日数 | H57: =+'入力情報(2)'!H28 -> 0 | I57: 日／年
D59: Ⅴ.シナリオの選択
E61: 初回更新年： | G61: 現状設備の更新時期での更新 | I61: 2012年
F62: シナリオ１ 更新しない場合（修繕のみで対応）
E63: =IF(AND('入力情報(2)'!T38=TRUE,'入力情報(2)'!A38=""),"✓","") ->  | F63: シナリオ２ 現状と同じフロー・水量で更新、使用年数はメンテナンスレベルから算出
E64: =IF(AND('入力情報(2)'!T39=TRUE,'入力情報(2)'!A39=""),"✓","") ->  | F64: シナリオ３ 希望フローで更新、水量は現状と同じ、使用年数はメンテナンスレベルから算出
E65: =IF(AND('入力情報(2)'!T40=TRUE,'入力情報(2)'!A40=""),"✓","") ->  | F65: シナリオ４ 現状のフローで更新、水量は将来予測、使用年数はメンテナンスレベルから算出
E66: =IF(AND('入力情報(2)'!T41=TRUE,'入力情報(2)'!A41=""),"✓","") ->  | F66: シナリオ５ 希望フローで更新、水量は将来予測、使用年数はメンテナンスレベルから算出
B72: シミュレーションを実行する前に入力情報の保存をお勧めします。
F74: ■入力情報を保存する場合■
F75: 下記、フロッピー画像をクリックして下さい。

Sheet マスター変更 (hidden)
A2: マスター変更
B6: 【修繕費】
B7: 修繕費補正係数 | C7: 0.3 | D7: *小数点第2位まで入力可
B9: 【設備費】
B10: 設備費基準金額 | C10: 159900 | D10: 万円
B12: マスターの変更がない場合
B13: 浄水フロー「凝集＋沈澱＋急速ろ過」浄水量20,000m3/日を基準浄水場と想定し、 設備費基準金額は159,900万円（e-WaterⅡ研究成果）としています。
B14: ※土木基礎工事、地盤改良工事、場内通路、場内管路工事は含みません。
B15: シミュレーション結果の内、更新費が予想と大きく異なる場合、この金額を変更して補正して下さい。
B17: 【運転費】
B18: １．変動費（電力、燃料、薬品費）
B19: 基準給水原価 | C19: 180 | D19: 円/m3-浄水
B20: 変動費係数 | C20: 0.1
B21: 運転費単価の変動費分 | C21: =C19*C20 -> 18 | D21: 円/m3-浄水
B23: ２．人件費
B24: 人件費①：浄水フローに『膜ろ過』を含まない場合
B25: 職員労務単価 | C25: 30000 | D25: 円/人・日
B26: 職員数 | C26: 16 | D26: 人/日
B27: 外注労務単価 | C27: 22000 | D27: 円/人・日
B28: 外注者数 | C28: 6 | D28: 人/日
B29: 職員労務費＋外注労務費 | C29: =C25*C26+C27*C28 -> 612000 | D29: 円/日-浄水場当たり
B30: 基準浄水場での浄水量当たりの人件費 | C30: =C29/F30 -> 30.6 | D30: 円/m3-浄水 | E30: 浄水量 | F30: 20000 | G30: m3/日
B32: 人件費②：浄水フローが『膜ろ過』を含む場合
B33: 職員労務単価 | C33: 30000 | D33: 円/人・日
B34: 職員数 | C34: 9 | D34: 人/日
B35: 外注労務単価 | C35: 22000 | D35: 円/人・日
B36: 外注者数 | C36: 10 | D36: 人/日
B37: 職員労務費＋外注労務費 | C37: =C33*C34+C35*C36 -> 490000 | D37: 円/日-浄水場当たり
B38: 基準浄水場での浄水量当たりの人件費 | C38: =C37/F38 -> 24.5 | D38: 円/m3-浄水 | E38: 浄水量 | F38: 20000 | G38: m3/日
B40: マスターの変更がない場合
B41: 基準給水原価を180円/m3（水道統計全国平均 H23年度177円/m3の1の桁を切上）とし、
B42: 変動費（電力、燃料、薬品）係数を0.13（水道統計全国平均 費用構成比12.6%）としています。
B43: 膜ろ過を含まない浄水場の人件費については、基準給水原価×0.15
B44: （水道統計全国平均 H23年度費用構成比14.5%）としています。 膜ろ過を含む浄水場では、基準給水原価×0.13（想定値）としています。
B45: シュミレーション結果の内、運転費が予想と大きく異なる場合、
B46: 「基準給水原価」と「変動費係数」ないし「職員労務単価、職員数、外注労務単価、外注者数」と
B47: 「浄水量」を変更してください。

Sheet 参照表 (hidden)
A2: =+"浄水フロー："&Cal浄水フロー -> 浄水フロー：0
B3: ="現在の浄水量（日最大）： "&TEXT('入力情報(1)'!H23,"#,###") -> 現在の浄水量（日最大）： | C3: ㎥/日 | M3: 42
B4: 規模 建設(更新)年 | C4: 土木構造物
B5: 1900 | C5: 55744
B6: 1901 | C6: 55744
B7: 1902 | C7: 55744
B8: 1903 | C8: 55744
B9: 1904 | C9: 55744
B10: 1905 | C10: 55744
B11: 1906 | C11: 55744
B12: 1907 | C12: 55744
B13: 1908 | C13: 55744
B14: 1909 | C14: 55744
B15: 1910 | C15: 55744
B16: 1911 | C16: 55744
B17: 1912 | C17: 55744
B18: 1913 | C18: 55744
B19: 1914 | C19: 55744
B20: 1915 | C20: 55744
B21: 1916 | C21: 55744
B22: 1917 | C22: 55744
B23: 1918 | C23: 55744
B24: 1919 | C24: 55744
B25: 1920 | C25: 55744
B26: 1921 | C26: 55744
B27: 1922 | C27: 55744
B28: 1923 | C28: 55744
B29: 1924 | C29: 55744
B30: 1925 | C30: 55744
B31: 1926 | C31: 55744
B32: 1927 | C32: 55744
B33: 1928 | C33: 55744
B34: 1929 | C34: 55744
B35: 1930 | C35: 55744
B36: 1931 | C36: 55744
B37: 1932 | C37: 55744
B38: 1933 | C38: 55744
B39: 1934 | C39: 55744
B40: 1935 | C40: 55744
B41: 1936 | C41: 55744
B42: 1937 | C42: 55744
B43: 1938 | C43: 55744
B44: 1939 | C44: 55744
B45: 1940 | C45: 55744
B46: 1941 | C46: 55744
B47: 1942 | C47: 55744
B48: 1943 | C48: 55744
B49: 1944 | C49: 55744
B50: 1945 | C50: 55744
B51: 1946 | C51: 55744
B52: 1947 | C52: 55744
B53: 1948 | C53: 55744
B54: 1949 | C54: 55744
B55: 1950 | C55: 55744
B56: 1951 | C56: 55744
B57: 1952 | C57: 59726
B58: 1953 | C58: 64069
B59: 1954 | C59: 64069
B60: 1955 | C60: 64431
B61: 1956 | C61: 71309
B62: 1957 | C62: 75653
B63: 1958 | C63: 73119
B64: 1959 | C64: 74929
B65: 1960 | C65: 79272
B66: 1961 | C66: 87960
B67: 1962 | C67: 91218
B68: 1963 | C68: 93027
B69: 1964 | C69: 96285
B70: 1965 | C70: 99181
B71: 1966 | C71: 105696
B72: 1967 | C72: 111488
B73: 1968 | C73: 115108
B74: 1969 | C74: 123433
B75: 1970 | C75: 132591
B76: 1971 | C76: 135378
B77: 1972 | C77: 143342
B78: 1973 | C78: 183159
B79: 1974 | C79: 222252
B80: 1975 | C80: 224786
B81: 1976 | C81: 240713
B82: 1977 | C82: 253020
B83: 1978 | C83: 270033
B84: 1979 | C84: 293561
B85: 1980 | C85: 319985
B86: 1981 | C86: 323605
B87: 1982 | C87: 324691
B88: 1983 | C88: 323967
B89: 1984 | C89: 329397
B90: 1985 | C90: 328325
B91: 1986 | C91: 324361
B92: 1987 | C92: 326523
B93: 1988 | C93: 332650
B94: 1989 | C94: 348147
B95: 1990 | C95: 360401
B96: 1991 | C96: 370132
B97: 1992 | C97: 374457
B98: 1993 | C98: 373736
B99: 1994 | C99: 374457
B100: 1995 | C100: 375177
B101: 1996 | C101: 374151
B102: 1997 | C102: 377739
B103: 1998 | C103: 371780
B104: 1999 | C104: 367774
B105: 2000 | C105: 368577
B106: 2001 | C106: 361574
B107: 2002 | C107: 358994
B108: 2003 | C108: 363417
B109: 2004 | C109: 369683
B110: 2005 | C110: 376102
B111: 2006 | C111: 382872
B112: 2007 | C112: 394907
B113: 2008 | C113: 417097
B114: 2009 | C114: 397916
B115: 2010 | C115: 399045
B116: 2011 | C116: 379863
B117: 2012 | C117: 376478 | E117: ┓ 2012年の数値となっています。
B118: 2013 | C118: 376478 | E118: ┃
B119: 2014 | C119: 376478 | E119: ┃
B120: 2015 | C120: 376478 | E120: ┃
B121: 2016 | C121: 376478 | E121: ┃
B122: 2017 | C122: 376478 | E122: ┃
B123: 2018 | C123: 376478 | E123: ┃
B124: 2019 | C124: 376478 | E124: ┃
B125: 2020 | C125: 376478 | E125: ┛

Sheet 取得金額計算 (hidden)
H2: (単位：千円)
N3: 41
B4: 規模 建設年 | C4: ﾃﾞﾌﾚｰﾀ | D4: 建築構造物 | E4: 土木構造物 | F4: 電気設備 | G4: 機械設備 | H4: 計装設備
B5: 1900 | C5: =+$C$56 -> 0.1482150881 | D5: =+$D$56 ->  | E5: =+$E$56 ->  | F5: =+$F$56 ->  | G5: =+$G$56 ->  | H5: =+$H$56 -> 
B6: 1901 | C6: =+$C$56 -> 0.1482150881 | D6: =+$D$56 ->  | E6: =+$E$56 ->  | F6: =+$F$56 ->  | G6: =+$G$56 ->  | H6: =+$H$56 -> 
B7: 1902 | C7: 0.1482150881
B8: 1903 | C8: 0.1482150881
B9: 1904 | C9: 0.1482150881
B10: 1905 | C10: 0.1482150881
B11: 1906 | C11: 0.1482150881
B12: 1907 | C12: 0.1482150881
B13: 1908 | C13: 0.1482150881
B14: 1909 | C14: 0.1482150881
B15: 1910 | C15: 0.1482150881
B16: 1911 | C16: 0.1482150881
B17: 1912 | C17: 0.1482150881
B18: 1913 | C18: 0.1482150881
B19: 1914 | C19: 0.1482150881
B20: 1915 | C20: 0.1482150881
B21: 1916 | C21: 0.1482150881
B22: 1917 | C22: 0.1482150881
B23: 1918 | C23: 0.1482150881
B24: 1919 | C24: 0.1482150881
B25: 1920 | C25: 0.1482150881
B26: 1921 | C26: 0.1482150881
B27: 1922 | C27: 0.1482150881
B28: 1923 | C28: 0.1482150881
B29: 1924 | C29: 0.1482150881
B30: 1925 | C30: 0.1482150881
B31: 1926 | C31: 0.1482150881
B32: 1927 | C32: 0.1482150881
B33: 1928 | C33: 0.1482150881
B34: 1929 | C34: 0.1482150881
B35: 1930 | C35: 0.1482150881
B36: 1931 | C36: 0.1482150881
B37: 1932 | C37: 0.1482150881
B38: 1933 | C38: 0.1482150881
B39: 1934 | C39: 0.1482150881
B40: 1935 | C40: 0.1482150881
B41: 1936 | C41: 0.1482150881
B42: 1937 | C42: 0.1482150881
B43: 1938 | C43: 0.1482150881
B44: 1939 | C44: 0.1482150881
B45: 1940 | C45: 0.1482150881
B46: 1941 | C46: 0.1482150881
B47: 1942 | C47: 0.1482150881
B48: 1943 | C48: 0.1482150881
B49: 1944 | C49: 0.1482150881
B50: 1945 | C50: 0.1482150881
B51: 1946 | C51: 0.1482150881
B52: 1947 | C52: 0.1482150881
B53: 1948 | C53: 0.1482150881
B54: 1949 | C54: 0.1482150881
B55: 1950 | C55: 0.1482150881
B56: 1951 | C56: =+Master!AE57/100 -> 0.1482150881 | D56: =ROUND((+Cal建築_浄水Flw*C56)/1000,0) ->  | E56: =ROUND((+Cal土木_浄水Flw*C56)/1000,0) ->  | F56: =ROUND((+Cal電気_浄水Flw*C56)/1000,0) ->  | G56: =ROUND((+Cal機械_浄水Flw*C56)/1000,0) ->  | H56: =ROUND((+Cal計装_浄水Flw*C56)/1000,0) ->  | J56: ←
B57: 1952 | C57: =+Master!AE58/100 -> 0.1588018802
B58: 1953 | C58: =+Master!AE59/100 -> 0.1703511078
B59: 1954 | C59: =+Master!AE60/100 -> 0.1703511078
B60: 1955 | C60: =+Master!AE61/100 -> 0.1713135434
B61: 1956 | C61: =+Master!AE62/100 -> 0.1895998205
B62: 1957 | C62: =+Master!AE63/100 -> 0.2011490482
B63: 1958 | C63: =+Master!AE64/100 -> 0.1944119987
B64: 1959 | C64: =+Master!AE65/100 -> 0.1992241769
B65: 1960 | C65: =+Master!AE66/100 -> 0.2107734046
B66: 1961 | C66: =+Master!AE67/100 -> 0.2338718599
B67: 1962 | C67: =+Master!AE68/100 -> 0.2425337806
B68: 1963 | C68: =+Master!AE69/100 -> 0.2473459588
B69: 1964 | C69: =+Master!AE70/100 -> 0.2560078795
B70: 1965 | C70: =+Master!AE71/100 -> 0.2637073646
B71: 1966 | C71: =+Master!AE72/100 -> 0.2810312061
B72: 1967 | C72: =+Master!AE73/100 -> 0.2964301763
B73: 1968 | C73: =+Master!AE74/100 -> 0.3060545327
B74: 1969 | C74: =+Master!AE75/100 -> 0.3281905523
B75: 1970 | C75: =+Master!AE76/100 -> 0.3525401739
B76: 1971 | C76: =+Master!AE77/100 -> 0.3599509283
B77: 1972 | C77: =+Master!AE78/100 -> 0.3811245124
B78: 1973 | C78: =+Master!AE79/100 -> 0.4869924325
B79: 1974 | C79: =+Master!AE80/100 -> 0.5909354813
B80: 1975 | C80: =+Master!AE81/100 -> 0.5976725307
B81: 1976 | C81: =+Master!AE82/100 -> 0.6400196988
B82: 1977 | C82: =+Master!AE83/100 -> 0.6727425105
B83: 1978 | C83: =+Master!AE84/100 -> 0.7179769854
B84: 1979 | C84: =+Master!AE85/100 -> 0.7805353018
B85: 1980 | C85: =+Master!AE86/100 -> 0.8507931034
B86: 1981 | C86: =+Master!AE87/100 -> 0.8604174597
B87: 1982 | C87: =+Master!AE88/100 -> 0.8633047666
B88: 1983 | C88: =+Master!AE89/100 -> 0.8613798954 | D88: =ROUND((+Cal建築_浄水Flw*C88)/1000,0) ->  | E88: =ROUND((+Cal土木_浄水Flw*C88)/1000,0) ->  | F88: =ROUND((+Cal電気_浄水Flw*C88)/1000,0) ->  | G88: =ROUND((+Cal機械_浄水Flw*C88)/1000,0) ->  | H88: =ROUND((+Cal計装_浄水Flw*C88)/1000,0) -> 
B89: 1984 | C89: =+Master!AE90/100 -> 0.8758164299
B90: 1985 | C90: =+Master!AE91/100 -> 0.87296806
B91: 1986 | C91: =+Master!AE92/100 -> 0.8624272821
B92: 1987 | C92: =+Master!AE93/100 -> 0.8681767973
B93: 1988 | C93: =+Master!AE94/100 -> 0.8844670904
B94: 1989 | C94: =+Master!AE95/100 -> 0.9256719494
B95: 1990 | C95: =+Master!AE96/100 -> 0.9582525356
B96: 1991 | C96: =+Master!AE97/100 -> 0.9841253541
B97: 1992 | C97: =+Master!AE98/100 -> 0.9956243845
B98: 1993 | C98: =+Master!AE99/100 -> 0.9937078795
B99: 1994 | C99: =+Master!AE100/100 -> 0.9956243845
B100: 1995 | C100: =+Master!AE101/100 -> 0.9975408896
B101: 1996 | C101: =+Master!AE102/100 -> 0.9948121241
B102: 1997 | C102: =+Master!AE103/100 -> 1.004352284
B103: 1998 | C103: =+Master!AE104/100 -> 0.9885065732
B104: 1999 | C104: =+Master!AE105/100 -> 0.9778563595
B105: 2000 | C105: =+Master!AE106/100 -> 0.9799918334
B106: 2001 | C106: =+Master!AE107/100 -> 0.9613719886
B107: 2002 | C107: =+Master!AE108/100 -> 0.9545120457
B108: 2003 | C108: =+Master!AE109/100 -> 0.9662719477
B109: 2004 | C109: =+Master!AE110/100 -> 0.9829318089
B110: 2005 | C110: =+Master!AE111/100 -> 1
B111: 2006 | C111: =+Master!AE112/100 -> 1.018
B112: 2007 | C112: =+Master!AE113/100 -> 1.05
B113: 2008 | C113: =+Master!AE114/100 -> 1.109
B114: 2009 | C114: =+Master!AE115/100 -> 1.058
B115: 2010 | C115: =+Master!AE116/100 -> 1.061
B116: 2011 | C116: =+Master!AE117/100 -> 1.01
B117: 2012 | C117: =+Master!AE118/100 -> 1.001 | J117: ←
B118: 2013 | C118: =+Master!AE119/100 -> 1.001
B119: 2014 | C119: =+Master!AE120/100 -> 1.001
B120: 2015 | C120: =+Master!AE121/100 -> 1.001 | D120: =ROUND((+Cal建築_浄水Flw*C120)/1000,0) ->  | E120: =ROUND((+Cal土木_浄水Flw*C120)/1000,0) ->  | F120: =ROUND((+Cal電気_浄水Flw*C120)/1000,0) ->  | G120: =ROUND((+Cal機械_浄水Flw*C120)/1000,0) ->  | H120: =ROUND((+Cal計装_浄水Flw*C120)/1000,0) -> 
B121: 2016 | C121: =+Master!AE122/100 -> 1.001
B122: 2017 | C122: =+Master!AE123/100 -> 1.001
B123: 2018 | C123: =+Master!AE124/100 -> 1.001
B124: 2019 | C124: =+Master!AE125/100 -> 1.001
B125: 2020 | C125: =+Master!AE126/100 -> 1.001

Sheet Master (hidden)
AY1: タイトル | AZ1: コメント
B2: {Select都道府県} | D2: {Select原水種類} | F2: {Select浄水フロー} | I2: {Select粉末炭} | K2: {Select主要設備系列数} | M2: {Selectその他系列名} | O2: {Selectメンテナンス} | S2: {Select建設年} | U2: {Select濁度G} | V2: {SelectTocG} | W2: {Selectカビ臭G} | X2: {SelectThmfpG} | AA2: {Rng耐用年数} | AD2: {RngDef} | AH2: {Mas原浄レベル} | AO2: {Mas濁度除去プロセス} | AX2: Userform表示 | AY2: メンテナンスレベル | AZ2: =VLOOKUP(AY2,$AY$13:$AZ$27,2,FALSE) -> 浄水施設に関してのメンテナンスレベルを自己採点して下さい。 メンテナンスレベルスコアが高いほど電気設備、機械設備、 計装設備の更新年数が法定耐用年数より延長するとして シミュレーションが行われます。 また、故障率が低くなります。 未入力の場合、メンテナンスレベルスコア360点（中間点）で 延長係数が計算されます。
U3: ■原水レベル■ | AD3: デフレーター | AH3: 1 | AI3: 2 | AJ3: 3 | AK3: 4 | AL3: 5 | AM3: 6 | AO3: 1 | AP3: 2 | AQ3: 3 | AR3: 4 | AZ3: ※｢ﾀｲﾄﾙ｣をｷｰとして、Vlookup参照
B4: 都道府県 | D4: 5.原水種類 | F4: 6.浄水フロー | G4: 分類No. | I4: 7.粉末炭の有無 | K4: 8.主要設備の最小系列数 | M4: 9.その系列名称 | O4: 10.メンテナンスポイント | P4: =+メンテナンスレベル!G29 -> 0 | S4: 建設(更新)年 | U4: 濁度 | V4: TOC | W4: カビ臭 | X4: THMFP | AB4: 法定耐用年数 | AD4: （年度） | AE4: 率 | AH4: Key(種類+項目+入力選択肢) | AI4: 種類 | AJ4: 項目 | AK4: 入力選択肢 | AL4: レベル | AM4: ﾎﾟｲﾝﾄ | AO4: Key(ﾌﾟﾛｾｽ+ﾌﾟﾛｾｽCode) | AP4: プロセス | AQ4: ﾌﾟﾛｾｽCode | AR4: プロセス名
AA5: 建築構造物 | AB5: 50 | AH5: 原水レベル!濁度!0.1度以下 | AI5: 原水レベル | AJ5: 濁度 | AK5: 0.1度以下 | AL5: 低-1 | AM5: 20 | AO5: 濁度除去プロセス!10 | AP5: 濁度除去プロセス | AQ5: 10 | AR5: 不要 | AT5: {RngPrintWs}
B6: 北海道 | D6: ダム放流水 | F6: 滅菌のみ | I6: 有 | K6: 1 | M6: 混和池 | P6: 延長係数(β) | Q6: 故障率係数(γ) | S6: 1950(昭和25) | U6: 0.1度以下 | V6: 1.0mg/L以下 | W6: 1ng/L以下 | X6: 0.015mg/L以下 | AA6: 土木構造物 | AB6: 60 | AD6: 1900 | AE6: 14.81162781 | AH6: 原水レベル!濁度!0.1度超～1.0度以下 | AI6: 原水レベル | AJ6: 濁度 | AK6: 0.1度超～1.0度以下 | AL6: 低 | AM6: 30 | AO6: 濁度除去プロセス!11 | AP6: 濁度除去プロセス | AQ6: 11 | AR6: 不要
B7: 青森県 | D7: ダム水 | F7: 緩速ろ過 | I7: 無 | K7: 2 | M7: フロック形成池 | O7: 建築構造物 | P7: =IF(P4>0,(0.4027*LN(P4)-1.0614),0.4027*LN(360)-1.0614) -> 1.308934093 | Q7: =+事故率係数/RngEnchou建築 -> 76.39804059 | S7: 1951(昭和26) | U7: 0.1度超～1.0度以下 | V7: 1.0mg/L超～1.5mg/L以下 | W7: 1ng/L超～3ng/L以下 | X7: 0.015mg/L超～0.04mg/L以下 | AA7: 電気設備 | AB7: 20 | AD7: 1901 | AE7: 14.81162781 | AH7: 原水レベル!濁度!1.0度超～5.0度以下 | AI7: 原水レベル | AJ7: 濁度 | AK7: 1.0度超～5.0度以下 | AL7: 中 | AM7: 40 | AO7: 濁度除去プロセス!12 | AP7: 濁度除去プロセス | AQ7: 12 | AR7: 不要 | AT7: 基本情報 | AU7: 基本情報
B8: 岩手県 | D8: 表流水 | F8: 凝集+急速ろ過 | G8: 3000 | K8: 3 | M8: 沈澱池 | O8: 土木構造物 | P8: =IF(P4>0,(0.4406*LN(P4)-1.247),0.4406*LN(360)-1.247) -> 1.346417436 | Q8: =+事故率係数/RngEnchou土木 -> 74.27117126 | S8: 1952(昭和27) | U8: 1.0度超～5.0度以下 | V8: 1.5mg/L超～2.5mg/L以下 | W8: 3ng/L超～5ng/L以下 | X8: 0.04mg/L超～0.07mg/L以下 | AA8: 機械設備 | AB8: 15 | AD8: 1902 | AE8: 14.81162781 | AH8: 原水レベル!濁度!5.0度超～800度以下 | AI8: 原水レベル | AJ8: 濁度 | AK8: 5.0度超～800度以下 | AL8: 高 | AM8: 50 | AO8: 濁度除去プロセス!20 | AP8: 濁度除去プロセス | AQ8: 20 | AR8: 不要 | AT8: 入力情報(1) | AU8: 入力情報(1)
B9: 宮城県 | D9: 湖沼水 | F9: 凝集+沈澱+急速ろ過 | G9: 2100 | K9: 4 | M9: ろ過池 | O9: 電気設備 | P9: =IF(P4>0,(0.3483*LN(P4)-0.7184),0.3483*LN(360)-0.7184) -> 1.331730034 | Q9: =+事故率係数/RngEnchou電気 -> 75.09029416 | S9: 1953(昭和28) | U9: 5.0度超～800度以下 | V9: 2.5mg/L超～3.5mg/L以下 | W9: 5ng/L超～25ng/L以下 | X9: 0.07mg/L超～0.14mg/L以下 | AA9: 計装設備 | AB9: 10 | AD9: 1903 | AE9: 14.81162781 | AH9: 原水レベル!濁度!800度超 | AI9: 原水レベル | AJ9: 濁度 | AK9: 800度超 | AL9: 高高 | AM9: 50 | AO9: 濁度除去プロセス!21 | AP9: 濁度除去プロセス | AQ9: 21 | AR9: 不要 | AT9: 入力情報(2) | AU9: 入力情報(2)
B10: 秋田県 | D10: 伏流水 | F10: 凝集+沈澱+粒状炭+急速ろ過 | G10: 5100 | K10: 5 | M10: その他 | O10: 機械設備 | P10: =IF(P4>0,(+ 0.2907*LN(P4)-0.3401),+ 0.2907*LN(360)-0.3401) -> 1.370990442 | Q10: =+事故率係数/RngEnchou機械 -> 72.93996876 | S10: 1954(昭和29) | U10: 800度超 | V10: 3.5mg/L超～8.1mg/L以下 | W10: 25ng/L超～1000ng/L以下 | X10: 0.14mg/L超 | AD10: 1904 | AE10: 14.81162781 | AH10: 原水レベル!TOC!1.0mg/L以下 | AI10: 原水レベル | AJ10: TOC | AK10: 1.0mg/L以下 | AL10: 低-2 | AM10: 10 | AO10: 濁度除去プロセス!22 | AP10: 濁度除去プロセス | AQ10: 22 | AR10: 膜ろ過 | AT10: メンテナンスレベル | AU10: メンテナンスレベル
B11: 山形県 | D11: 浅井戸水 | F11: 凝集+沈澱+オゾン+粒状炭+急速ろ過 | G11: 6100 | K11: 6 | O11: 計装設備 | P11: =IF(P4>0,(0.3239*LN(P4)-0.5728),0.3239*LN(360)-0.5728) -> 1.333709096 | Q11: =+事故率係数/RngEnchou計装 -> 74.97886932 | S11: 1955(昭和30) | V11: 8.1mg/L超 | W11: 1000ng/L超 | AD11: 1905 | AE11: 14.81162781 | AH11: 原水レベル!TOC!1.0mg/L超～1.5mg/L以下 | AI11: 原水レベル | AJ11: TOC | AK11: 1.0mg/L超～1.5mg/L以下 | AL11: 低-1 | AM11: 20 | AO11: 濁度除去プロセス!30 | AP11: 濁度除去プロセス | AQ11: 30 | AR11: 不要 | AT11: プレビュー | AU11: プレビュー | AY11: 【項目説明】
B12: 福島県 | D12: 深井戸水 | F12: その他 | K12: 7 | S12: 1956(昭和31) | U12: ■浄水レベル■ | AD12: 1906 | AE12: 14.81162781 | AH12: 原水レベル!TOC!1.5mg/L超～2.5mg/L以下 | AI12: 原水レベル | AJ12: TOC | AK12: 1.5mg/L超～2.5mg/L以下 | AL12: 低 | AM12: 30 | AO12: 濁度除去プロセス!31 | AP12: 濁度除去プロセス | AQ12: 31 | AR12: 凝集＋急速ろ過 | AT12: 健全度 | AU12: 健全度 | AX12: No. | AY12: 項目名 | AZ12: コメント
B13: 茨城県 | D13: 湧水 | F13: 粉末炭+凝集+沈澱+急速ろ過 | G13: 2110 | K13: 8 | O13: 事故率係数(γ) | P13: 100 | S13: 1957(昭和32) | U13: 濁度 | V13: TOC | W13: カビ臭 | X13: THM | AD13: 1907 | AE13: 14.81162781 | AH13: 原水レベル!TOC!2.5mg/L超～3.5mg/L以下 | AI13: 原水レベル | AJ13: TOC | AK13: 2.5mg/L超～3.5mg/L以下 | AL13: 中 | AM13: 40 | AO13: 濁度除去プロセス!32 | AP13: 濁度除去プロセス | AQ13: 32 | AR13: 膜ろ過 | AT13: 影響水量 | AU13: 影響水量 | AX13: 4 | AY13: 給水原価 | AZ13: 現状の給水原価を入力して下さい。仮の数値を入力する場合、 水道統計（H17年度）では約180円/m3を参考にして下さい。
B14: 栃木県 | D14: その他 | K14: 9以上 | S14: 1958(昭和33) | AD14: 1908 | AE14: 14.81162781 | AH14: 原水レベル!TOC!3.5mg/L超～8.1mg/L以下 | AI14: 原水レベル | AJ14: TOC | AK14: 3.5mg/L超～8.1mg/L以下 | AL14: 高 | AM14: 50 | AO14: 濁度除去プロセス!40 | AP14: 濁度除去プロセス | AQ14: 40 | AR14: 凝集＋急速ろ過 | AT14: 損失額 | AU14: 損失額 | AX14: 5 | AY14: 原水種類 | AZ14: シミュレーションには影響しませんので、未記入でも構いません。
B15: 群馬県 | S15: 1959(昭和34) | U15: （2.0度以下） | V15: 3.0mg/L以下 | W15: 10ng/L以下 | X15: 0.1mg/L以下 | AD15: 1909 | AE15: 14.81162781 | AH15: 原水レベル!TOC!8.1mg/L超 | AI15: 原水レベル | AJ15: TOC | AK15: 8.1mg/L超 | AL15: 高高 | AM15: 50 | AO15: 濁度除去プロセス!41 | AP15: 濁度除去プロセス | AQ15: 41 | AR15: 凝集＋急速ろ過 | AT15: 修繕＆更新(シナリオ１) | AU15: 修繕更新費用S1 | AX15: 6 | AY15: 浄水フロー | AZ15: 基本的な浄水プロセスの構成で浄水フローを示しています。 現在の浄水フローに最も近い処理フローを選択して下さい。
B16: 埼玉県 | S16: 1960(昭和35) | U16: 0.1度以下 | V16: 1.5mg/L以下 | W16: 3ng/L以下 | X16: 0.04mg/L以下 | AD16: 1910 | AE16: 14.81162781 | AH16: 原水レベル!カビ臭!1ng/L以下 | AI16: 原水レベル | AJ16: カビ臭 | AK16: 1ng/L以下 | AL16: 低-2 | AM16: 10 | AO16: 濁度除去プロセス!42 | AP16: 濁度除去プロセス | AQ16: 42 | AR16: 膜ろ過 | AT16: 修繕＆更新(シナリオ２) | AU16: 修繕更新費用S2 | AX16: 7 | AY16: 粉末炭の有無 | AZ16: 粉末炭注入設備の有無を選択して下さい。 水源事故対策としての設備の場合は“無”を選択する。
B17: 千葉県 | S17: 1961(昭和36) | U17: 0.01度以下 | V17: 1.0mg/L以下 | W17: 1ng/L以下 | X17: 0.015mg/L以下 | AD17: 1911 | AE17: 14.81162781 | AH17: 原水レベル!カビ臭!1ng/L超～3ng/L以下 | AI17: 原水レベル | AJ17: カビ臭 | AK17: 1ng/L超～3ng/L以下 | AL17: 低-1 | AM17: 20 | AO17: 濁度除去プロセス!50 | AP17: 濁度除去プロセス | AQ17: 50 | AR17: 凝集＋沈澱＋急速ろ過 | AT17: 修繕＆更新(シナリオ３) | AU17: 修繕更新費用S3 | AX17: 7_a | AY17: 粉末炭平均注入率 | AZ17: 未入力の場合、平均注入率10mg/Lとして計算されます。
B18: 東京都 | K18: Rng更新率表 | L18: 更新率% | P18: Select更新年 | S18: 1962(昭和37) | AD18: 1912 | AE18: 14.81162781 | AH18: 原水レベル!カビ臭!3ng/L超～5ng/L以下 | AI18: 原水レベル | AJ18: カビ臭 | AK18: 3ng/L超～5ng/L以下 | AL18: 低 | AM18: 30 | AO18: 濁度除去プロセス!51 | AP18: 濁度除去プロセス | AQ18: 51 | AR18: 凝集＋沈澱＋急速ろ過 | AT18: 修繕＆更新(シナリオ４) | AU18: 修繕更新費用S4 | AX18: 7_b | AY18: 粉末炭注入日数 | AZ18: 未入力の場合、３６５日／年で計算されます。
B19: 神奈川県 | K19: 経過年数 | L19: 機械 | M19: 電気 | N19: 経年 | P19: 更新年指定 | S19: 1963(昭和38) | AD19: 1913 | AE19: 14.81162781 | AH19: 原水レベル!カビ臭!5ng/L超～25ng/L以下 | AI19: 原水レベル | AJ19: カビ臭 | AK19: 5ng/L超～25ng/L以下 | AL19: 中 | AM19: 40 | AO19: 濁度除去プロセス!52 | AP19: 濁度除去プロセス | AQ19: 52 | AR19: 凝集＋沈澱＋膜ろ過 or 凝集＋前ろ過＋膜ろ過 | AT19: 修繕＆更新(シナリオ５) | AU19: 修繕更新費用S5 | AX19: 8 | AY19: 主要設備の最小系列数 | AZ19: 影響水量と損失額の計算に使用します。 系列数が多いほど、影響水量、損失額は低くなります。 例えば、沈澱池２系列、ろ過池が４系列の場合には、 ２系列を選択します。
B20: 新潟県 | F20: {Select推奨フロー} | K20: 0 | L20: 0.07331489997 | M20: 0.08652744335 | N20: 0.3171442896 | S20: 1964(昭和39) | U20: {Select濁度J} | V20: {SelectTocJ} | W20: {Selectカビ臭J} | X20: {SelectThmfpJ} | AD20: 1914 | AE20: 14.81162781 | AH20: 原水レベル!カビ臭!25ng/L超～1000ng/L以下 | AI20: 原水レベル | AJ20: カビ臭 | AK20: 25ng/L超～1000ng/L以下 | AL20: 高 | AM20: 50 | AO20: TOC除去プロセス!100 | AP20: TOC除去プロセス | AQ20: 100 | AR20: 不要 | AT20: 出力まとめの表 | AU20: 出力まとめの表 | AX20: 10 | AY20: メンテナンスレベル | AZ20: 浄水施設に関してのメンテナンスレベルを自己採点して下さい。 メンテナンスレベルスコアが高いほど電気設備、機械設備、 計装設備の更新年数が法定耐用年数より延長するとして シミュレーションが行われます。 また、故障率が低くなります。 未入力の場合、メンテナンスレベルスコア360点（中間点）で 延長係数が計算されます。
B21: 富山県 | K21: 1 | L21: 0.1732625394 | M21: 0.2016554718 | N21: 0.7104297173 | P21: 2011年 | S21: 1965(昭和40) | AD21: 1915 | AE21: 14.81162781 | AH21: 原水レベル!カビ臭!1000ng/L超 | AI21: 原水レベル | AJ21: カビ臭 | AK21: 1000ng/L超 | AL21: 高高 | AM21: 50 | AO21: TOC除去プロセス!110 | AP21: TOC除去プロセス | AQ21: 110 | AR21: 不要 | AT21: 系列の集計 | AU21: 系列の集計 | AX21: 11_15 | AY21: 設備分類毎の情報 | AZ21: 建設（更新）年は主要な設備、機材の取得年を入力して下さい。 取得金額は主要なものとその他の設備、機材の金額を分かる 範囲で合計して入力して下さい。 取得金額が不明な場合、参照入力の金額を参照するかそのまま 入力（取得データを「取得金額」に入力する）して下さい。
B22: 石川県 | F22: 21.希望フロー | K22: 2 | L22: 0.3078669483 | M22: 0.3531726238 | N22: 1.193463016 | P22: 2012年 | S22: 1966(昭和41) | AD22: 1916 | AE22: 14.81162781 | AH22: 原水レベル!THMFP!0.015mg/L以下 | AI22: 原水レベル | AJ22: THMFP | AK22: 0.015mg/L以下 | AL22: 低-1 | AM22: 20 | AO22: TOC除去プロセス!120 | AP22: TOC除去プロセス | AQ22: 120 | AR22: 不要 | AX22: 16 | AY22: 更新する場合の浄水量 | AZ22: 更新する場合の計画浄水量を入力して下さい。 あるいは将来予想される給水人口から計画浄水量を 入力して下さい。
B23: 福井県 | K23: 3 | L23: 0.4869491722 | M23: 0.5504131099 | N23: 1.781039684 | P23: 2013年 | S23: 1967(昭和42) | AD23: 1917 | AE23: 14.81162781 | AH23: 原水レベル!THMFP!0.015mg/L超～0.04mg/L以下 | AI23: 原水レベル | AJ23: THMFP | AK23: 0.015mg/L超～0.04mg/L以下 | AL23: 低 | AM23: 30 | AO23: TOC除去プロセス!200 | AP23: TOC除去プロセス | AQ23: 200 | AR23: 不要 | AX23: - | AY23: プロセス選定 | AZ23: 「水道技術研究センター 浄水技術ガイドライン2010 p.16～19」に 記載されているプロセス選定表、基本システム選定表を参考としています。 ただし、”前ろ過”を含むプロセスはシミュレーションを簡略化するため除外しました。 また、シミュレータの都合上、原水レベルを低、中、高の3段階から低-2、低-1、中、高、高高の5段階に変更しました。
B24: 山梨県 | F24: 膜ろ過 | G24: 1100 | K24: 4 | L24: 0.722319722 | M24: 0.8043839554 | N24: 2.48893701 | P24: 2014年 | S24: 1968(昭和43) | AD24: 1918 | AE24: 14.81162781 | AH24: 原水レベル!THMFP!0.04mg/L超～0.07mg/L以下 | AI24: 原水レベル | AJ24: THMFP | AK24: 0.04mg/L超～0.07mg/L以下 | AL24: 中 | AM24: 40 | AO24: TOC除去プロセス!210 | AP24: TOC除去プロセス | AQ24: 210 | AR24: 不要 | AX24: 3 | AY24: 現在の給水人口 | AZ24: 計画給水人口を入力して下さい。
B25: 長野県 | F25: 凝集+膜ろ過 | G25: 1200 | K25: 5 | L25: 1.027923145 | M25: 1.127847395 | N25: 3.333620989 | P25: 2015年 | S25: 1969(昭和44) | AD25: 1919 | AE25: 14.81162781 | AH25: 原水レベル!THMFP!0.07mg/L超～0.14mg/L以下 | AI25: 原水レベル | AJ25: THMFP | AK25: 0.07mg/L超～0.14mg/L以下 | AL25: 高 | AM25: 50 | AO25: TOC除去プロセス!220 | AP25: TOC除去プロセス | AQ25: 220 | AR25: 凝集or粉末炭or粒状炭or（オゾン＋粒状炭） | AX25: 17_20 | AY25: 推奨浄水プロセスの情報 | AZ25: 「水道技術研究センター 浄水技術ガイドライン2010 p.15」に 記載されている原水レベルと浄水レベル区分となっています。
B26: 岐阜県 | F26: 凝集+沈澱+急速ろ過 | G26: 2100 | K26: 6 | L26: 1.419909324 | M26: 1.535340319 | N26: 4.331864507 | P26: 2016年 | S26: 1970(昭和45) | AD26: 1920 | AE26: 14.81162781 | AH26: 原水レベル!THMFP!0.14mg/L超 | AI26: 原水レベル | AJ26: THMFP | AK26: 0.14mg/L超 | AL26: 高高 | AM26: 50 | AO26: TOC除去プロセス!300 | AP26: TOC除去プロセス | AQ26: 300 | AR26: 不要 | AX26: 19 | AY26: 推奨浄水プロセスの情報：カビ臭 | AZ26: ジェオスミンと2-MIB濃度の合計値として下さい。 「水道技術研究センター 浄水技術ガイドライン2010 p.15」に 記載されている原水レベルと浄水レベル区分となっています。
B27: 静岡県 | F27: 粉末炭+凝集+沈澱+急速ろ過 | G27: 2110 | K27: 7 | L27: 1.916604276 | M27: 2.043112 | N27: 5.500279169 | P27: 2017年 | S27: 1971(昭和46) | AD27: 1921 | AE27: 14.81162781 | AH27: 浄水レベル!濁度!（2.0度以下） | AI27: 浄水レベル | AJ27: 濁度 | AK27: （2.0度以下） | AL27: 水質基準 | AM27: 0 | AO27: TOC除去プロセス!310 | AP27: TOC除去プロセス | AQ27: 310 | AR27: 凝集or粉末炭or粒状炭or（オゾン＋粒状炭） | AX27: 9 | AY27: その系列名称 | AZ27: 未記入でもかまいません。 単に最小系列設備の名称を確認するものです。
B28: 愛知県 | F28: 凝集+沈澱+膜ろ過 | G28: 2200 | K28: 8 | L28: 2.538353405 | M28: 2.668962231 | N28: 6.854769014 | P28: 2018年 | S28: 1972(昭和47) | AD28: 1922 | AE28: 14.81162781 | AH28: 浄水レベル!濁度!0.1度以下 | AI28: 浄水レベル | AJ28: 濁度 | AK28: 0.1度以下 | AL28: レベル１ | AM28: 1 | AO28: TOC除去プロセス!320 | AP28: TOC除去プロセス | AQ28: 320 | AR28: 凝集or粉末炭or粒状炭or（オゾン＋粒状炭）
B29: 三重県 | F29: 粉末炭+凝集+沈澱+膜ろ過 | G29: 2210 | K29: 9 | L29: 3.307213065 | M29: 3.431964611 | N29: 8.409920737 | P29: 2019年 | S29: 1973(昭和48) | AD29: 1923 | AE29: 14.81162781 | AH29: 浄水レベル!濁度!0.01度以下 | AI29: 浄水レベル | AJ29: 濁度 | AK29: 0.01度以下 | AL29: レベル２ | AM29: 2 | AO29: TOC除去プロセス!400 | AP29: TOC除去プロセス | AQ29: 400 | AR29: 不要
B30: 滋賀県 | F30: 凝集+急速ろ過 | G30: 3000 | K30: 10 | L30: 4.24647217 | M30: 4.352064339 | N30: 10.17835139 | P30: 2020年 | S30: 1974(昭和49) | AD30: 1924 | AE30: 14.81162781 | AH30: 浄水レベル!TOC!3.0mg/L以下 | AI30: 浄水レベル | AJ30: TOC | AK30: 3.0mg/L以下 | AL30: 水質基準 | AM30: 0 | AO30: TOC除去プロセス!410 | AP30: TOC除去プロセス | AQ30: 410 | AR30: 粒状炭or（オゾン＋粒状炭）
B31: 京都府 | F31: 凝集+沈澱+粒状炭+急速ろ過 | G31: 5100 | K31: 11 | L31: 5.379994818 | M31: 5.449546445 | N31: 12.17004055 | P31: 2021年 | S31: 1975(昭和50) | AD31: 1925 | AE31: 14.81162781 | AH31: 浄水レベル!TOC!1.5mg/L以下 | AI31: 浄水レベル | AJ31: TOC | AK31: 1.5mg/L以下 | AL31: レベル１ | AM31: 1 | AO31: TOC除去プロセス!420 | AP31: TOC除去プロセス | AQ31: 420 | AR31: 粒状炭or（オゾン＋粒状炭）
B32: 大阪府 | F32: 凝集+沈澱+粒状炭+膜ろ過 | G32: 5200 | K32: 12 | L32: 6.731387115 | M32: 6.744378756 | N32: 14.39167879 | P32: 2022年 | S32: 1976(昭和51) | AD32: 1926 | AE32: 14.81162781 | AH32: 浄水レベル!TOC!1.0mg/L以下 | AI32: 浄水レベル | AJ32: TOC | AK32: 1.0mg/L以下 | AL32: レベル２ | AM32: 2 | AO32: TOC除去プロセス!500 | AP32: TOC除去プロセス | AQ32: 500 | AR32: 粉末炭
B33: 兵庫県 | F33: 凝集+沈澱+オゾン+粒状炭+急速ろ過 | G33: 6100 | K33: 13 | L33: 8.323006153 | M33: 8.255443744 | N33: 16.84606771 | P33: 2023年 | S33: 1977(昭和52) | AD33: 1927 | AE33: 14.81162781 | AH33: 浄水レベル!カビ臭!10ng/L以下 | AI33: 浄水レベル | AJ33: カビ臭 | AK33: 10ng/L以下 | AL33: 水質基準 | AM33: 0 | AO33: TOC除去プロセス!510 | AP33: TOC除去プロセス | AQ33: 510 | AR33: 粒状炭or（オゾン＋粒状炭）
B34: 奈良県 | F34: 凝集+沈澱+オゾン+粒状炭+膜ろ過 | G34: 6200 | K34: 14 | L34: 10.1748453 | M34: 9.999683951 | N34: 19.53160803 | P34: 2024年 | S34: 1978(昭和53) | AD34: 1928 | AE34: 14.81162781 | AH34: 浄水レベル!カビ臭!3ng/L以下 | AI34: 浄水レベル | AJ34: カビ臭 | AK34: 3ng/L以下 | AL34: レベル１ | AM34: 1 | AO34: TOC除去プロセス!520 | AP34: TOC除去プロセス | AQ34: 520 | AR34: 粒状炭or（オゾン＋粒状炭）
B35: 和歌山県 | F35: 粒状炭+膜ろ過 | G35: 7100 | K35: 15 | L35: 12.30334624 | M35: 11.99119618 | N35: 22.44191118 | P35: 2025年 | S35: 1979(昭和54) | AD35: 1929 | AE35: 14.81162781 | AH35: 浄水レベル!カビ臭!1ng/L以下 | AI35: 浄水レベル | AJ35: カビ臭 | AK35: 1ng/L以下 | AL35: レベル２ | AM35: 2 | AO35: カビ臭除去プロセス!1000 | AP35: カビ臭除去プロセス | AQ35: 1000 | AR35: 不要
B36: 鳥取県 | F36: 凝集+粒状炭+膜ろ過 | G36: 7200 | K36: 16 | L36: 14.72020283 | M36: 14.24031914 | N36: 25.56556601 | P36: 2026年 | S36: 1980(昭和55) | AD36: 1930 | AE36: 14.81162781 | AH36: 浄水レベル!THM!0.1mg/L以下 | AI36: 浄水レベル | AJ36: THM | AK36: 0.1mg/L以下 | AL36: 水質基準 | AM36: 0 | AO36: カビ臭除去プロセス!1100 | AP36: カビ臭除去プロセス | AQ36: 1100 | AR36: 不要
B37: 島根県 | F37: オゾン+粒状炭+膜ろ過 | G37: 7300 | K37: 17 | L37: 17.43123309 | M37: 16.75276639 | N37: 28.88608603 | P37: 2027年 | S37: 1981(昭和56) | AD37: 1931 | AE37: 14.81162781 | AH37: 浄水レベル!THM!0.04mg/L以下 | AI37: 浄水レベル | AJ37: THM | AK37: 0.04mg/L以下 | AL37: レベル１ | AM37: 1 | AO37: カビ臭除去プロセス!1200 | AP37: カビ臭除去プロセス | AQ37: 1200 | AR37: 不要
B38: 岡山県 | K38: 18 | L38: 20.43540165 | M38: 19.52886087 | N38: 32.38205385 | P38: 2028年 | S38: 1982(昭和57) | AD38: 1932 | AE38: 14.81162781 | AH38: 浄水レベル!THM!0.015mg/L以下 | AI38: 浄水レベル | AJ38: THM | AK38: 0.015mg/L以下 | AL38: レベル２ | AM38: 2 | AO38: カビ臭除去プロセス!2000 | AP38: カビ臭除去プロセス | AQ38: 2000 | AR38: 不要
B39: 広島県 | K39: 19 | L39: 23.72407456 | M39: 22.56292717 | N39: 36.02746908 | P39: 2029年 | S39: 1983(昭和58) | AD39: 1933 | AE39: 14.81162781 | AO39: カビ臭除去プロセス!2100 | AP39: カビ臭除去プロセス | AQ39: 2100 | AR39: 不要
B40: 山口県 | K40: 20 | L40: 27.28058028 | M40: 25.84289381 | N40: 39.79229449 | P40: 2030年 | S40: 1984(昭和59) | AD40: 1934 | AE40: 14.81162781 | AO40: カビ臭除去プロセス!2200 | AP40: カビ臭除去プロセス | AQ40: 2200 | AR40: 粉末炭
B41: 徳島県 | K41: 21 | L41: 31.08013577 | M41: 29.35014864 | N41: 43.64318288 | P41: 2031年 | S41: 1985(昭和60) | AD41: 1935 | AE41: 14.81162781 | AO41: カビ臭除去プロセス!3000 | AP41: カビ臭除去プロセス | AQ41: 3000 | AR41: 不要
B42: 香川県 | K42: 22 | L42: 35.09017409 | M42: 33.05967747 | N42: 47.54435652 | P42: 2032年 | S42: 1986(昭和61) | AD42: 1936 | AE42: 14.81162781 | AO42: カビ臭除去プロセス!3100 | AP42: カビ臭除去プロセス | AQ42: 3100 | AR42: 粉末炭
B43: 愛媛県 | K43: 23 | L43: 39.27108297 | M43: 36.9404994 | N43: 51.45860045 | P43: 2033年 | S43: 1987(昭和62) | AD43: 1937 | AE43: 14.81162781 | AO43: カビ臭除去プロセス!3200 | AP43: カビ臭除去プロセス | AQ43: 3200 | AR43: 粉末炭
B44: 高知県 | K44: 24 | L44: 43.57733388 | M44: 40.95639315 | N44: 55.34832412 | P44: 2034年 | S44: 1988(昭和63) | AD44: 1938 | AE44: 14.81162781 | AO44: カビ臭除去プロセス!4000 | AP44: カビ臭除去プロセス | AQ44: 4000 | AR44: 粉末炭
B45: 福岡県 | K45: 25 | L45: 47.95895084 | M45: 45.06688933 | N45: 59.17664091 | P45: 2035年 | S45: 1989(昭和64) | AD45: 1939 | AE45: 14.81162781 | AO45: カビ臭除去プロセス!4100 | AP45: カビ臭除去プロセス | AQ45: 4100 | AR45: 粉末炭or粒状炭or（オゾン＋粒状炭）
B46: 佐賀県 | K46: 26 | L46: 52.36324114 | M46: 49.22848438 | N46: 62.90841413 | P46: 2036年 | S46: 1990(平成02) | AD46: 1940 | AE46: 14.81162781 | AO46: カビ臭除去プロセス!4200 | AP46: カビ臭除去プロセス | AQ46: 4200 | AR46: 粒状炭or（オゾン＋粒状炭）
B47: 長崎県 | K47: 27 | L47: 56.7366886 | M47: 53.39601618 | N47: 66.51122011 | P47: 2037年 | S47: 1991(平成03) | AD47: 1941 | AE47: 14.81162781 | AO47: カビ臭除去プロセス!5000 | AP47: カビ臭除去プロセス | AQ47: 5000 | AR47: 粉末炭or粒状炭or（オゾン＋粒状炭）
B48: 熊本県 | K48: 28 | L48: 61.02689651 | M48: 57.52412903 | N48: 69.95618472 | P48: 2038年 | S48: 1992(平成04) | AD48: 1942 | AE48: 14.81162781 | AO48: カビ臭除去プロセス!5100 | AP48: カビ臭除去プロセス | AQ48: 5100 | AR48: 粒状炭or（オゾン＋粒状炭）
B49: 大分県 | K49: 29 | L49: 65.18446311 | M49: 61.56874913 | N49: 73.2186576 | P49: 2039年 | S49: 1993(平成05) | AD49: 1943 | AE49: 14.81162781 | AO49: カビ臭除去プロセス!5200 | AP49: カビ臭除去プロセス | AQ49: 5200 | AR49: 粒状炭or（オゾン＋粒状炭）
B50: 宮崎県 | K50: 30 | L50: 69.16467818 | M50: 65.48849078 | N50: 76.27869908 | P50: 2040年 | S50: 1994(平成06) | AD50: 1944 | AE50: 14.81162781 | AO50: THM除去プロセス!10000 | AP50: THM除去プロセス | AQ50: 10000 | AR50: 不要
B51: 鹿児島県 | K51: 31 | L51: 72.92894425 | M51: 69.24591896 | N51: 79.12136597 | P51: 2041年 | S51: 1995(平成07) | AD51: 1945 | AE51: 14.81162781 | AO51: THM除去プロセス!11000 | AP51: THM除去プロセス | AQ51: 11000 | AR51: 不要
B52: 沖縄県 | K52: 32 | L52: 76.44584844 | M52: 72.8086043 | N52: 81.73679468 | P52: 2042年 | S52: 1996(平成08) | AD52: 1946 | AE52: 14.81162781 | AO52: THM除去プロセス!12000 | AP52: THM除去プロセス | AQ52: 12000 | AR52: 不要
K53: 33 | L53: 79.69183868 | M53: 76.14992208 | N53: 84.1200911 | P53: 2043年 | S53: 1997(平成09) | AD53: 1947 | AE53: 14.81162781 | AO53: THM除去プロセス!20000 | AP53: THM除去プロセス | AQ53: 20000 | AR53: 不要
K54: 34 | L54: 82.65148851 | M54: 79.24956474 | N54: 86.27104691 | P54: 2044年 | S54: 1998(平成10) | AD54: 1948 | AE54: 14.81162781 | AO54: THM除去プロセス!21000 | AP54: THM除去プロセス | AQ54: 21000 | AR54: 不要
K55: 35 | L55: 85.31736425 | M55: 82.09375741 | N55: 88.19370993 | P55: 2045年 | S55: 1999(平成11) | AD55: 1949 | AE55: 14.81162781 | AO55: THM除去プロセス!22000 | AP55: THM除去プロセス | AQ55: 22000 | AR55: 不要
K56: 36 | L56: 87.68953487 | M56: 84.6751849 | N56: 89.89584146 | P56: 2046年 | S56: 2000(平成12) | AD56: 1950 | AE56: 14.81162781 | AO56: THM除去プロセス!30000 | AP56: THM除去プロセス | AQ56: 30000 | AR56: 不要
K57: 37 | L57: 89.77478613 | M57: 86.99265631 | N57: 91.3882967 | P57: 2047年 | S57: 2001(平成13) | AD57: 1951 | AE57: 14.82150881 | AO57: THM除去プロセス!31000 | AP57: THM除去プロセス | AQ57: 31000 | AR57: 不要
K58: 38 | L58: 91.58561459 | M58: 89.05054734 | N58: 92.68436465 | P58: 2048年 | S58: 2002(平成14) | AD58: 1952 | AE58: 15.88018802 | AO58: THM除去プロセス!32000 | AP58: THM除去プロセス | AQ58: 32000 | AR58: 粉末炭or（オゾン＋粒状炭）
K59: 39 | L59: 93.13908391 | M59: 90.8580706 | N59: 93.79910182 | P59: 2049年 | S59: 2003(平成15) | AD59: 1953 | AE59: 17.03511078 | AO59: THM除去プロセス!40000 | AP59: THM除去プロセス | AQ59: 40000 | AR59: 不要
K60: 40 | L60: 94.45562524 | M60: 92.42842963 | N60: 94.74869033 | P60: 2050年 | S60: 2004(平成16) | AD60: 1954 | AE60: 17.03511078 | AO60: THM除去プロセス!41000 | AP60: THM除去プロセス | AQ60: 41000 | AR60: 粉末炭or（オゾン＋粒状炭）
K61: 41 | L61: 95.5578566 | M61: 93.77791303 | N61: 95.54984557 | P61: 2051年 | S61: 2005(平成17) | AD61: 1955 | AE61: 17.13135434 | AO61: THM除去プロセス!42000 | AP61: THM除去プロセス | AQ61: 42000 | AR61: （オゾン＋粒状炭）
K62: 42 | L62: 96.46948424 | M62: 94.92498239 | N62: 96.21929251 | P62: 2052年 | S62: 2006(平成18) | AD62: 1956 | AE62: 18.95998205 | AO62: THM除去プロセス!50000 | AP62: THM除去プロセス | AQ62: 50000 | AR62: 粉末炭
K63: 43 | L63: 97.21433394 | M63: 95.88940046 | N63: 96.7733233 | P63: 2053年 | S63: 2007(平成19) | AD63: 1957 | AE63: 20.11490482 | AO63: THM除去プロセス!51000 | AP63: THM除去プロセス | AQ63: 51000 | AR63: （オゾン＋粒状炭）
K64: 44 | L64: 97.81554403 | M64: 96.6914377 | N64: 97.22744253 | P64: 2054年 | S64: 2008(平成20) | AD64: 1958 | AE64: 19.44119987 | AO64: THM除去プロセス!52000 | AP64: THM除去プロセス | AQ64: 52000 | AR64: （オゾン＋粒状炭）
K65: 45 | L65: 98.29493552 | M65: 97.35118447 | N65: 97.59610094 | P65: 2055年 | S65: 2009(平成21) | AD65: 1959 | AE65: 19.92241769
K66: 46 | L66: 98.67256061 | M66: 97.88798574 | N66: 97.89251354 | P66: 2056年 | S66: 2010(平成22) | AD66: 1960 | AE66: 21.07734046
K67: 47 | L67: 98.9664188 | M67: 98.32000523 | N67: 98.12855453 | P67: 2057年 | S67: 2011(平成23) | AD67: 1961 | AE67: 23.38718599
K68: 48 | L68: 99.19232139 | M68: 98.66391672 | N68: 98.31471885 | P68: 2058年 | S68: 2012(平成24) | AD68: 1962 | AE68: 24.25337806
K69: 49 | L69: 99.36387943 | M69: 98.93471353 | N69: 98.46013871 | P69: 2059年 | S69: 2013(平成25) | AD69: 1963 | AE69: 24.73459588
K70: 50 | L70: 99.49258798 | M70: 99.14562197 | N70: 98.57264304 | P70: 2060年 | S70: 2014(平成26) | AD70: 1964 | AE70: 25.60078795
K71: 51 | L71: 99.58797958 | M71: 99.30810122 | N71: 98.65884816 | P71: 2061年 | S71: 2015(平成27) | AD71: 1965 | AE71: 26.37073646
K72: 52 | L72: 99.65782202 | M72: 99.43191112 | N72: 98.72426885 | S72: 2016(平成28) | AD72: 1966 | AE72: 28.10312061
K73: 53 | L73: 99.70833872 | M73: 99.52522933 | N73: 98.77344057 | S73: 2017(平成29) | AD73: 1967 | AE73: 29.64301763
K74: 54 | L74: 99.74443456 | M74: 99.59480076 | N74: 98.81004502 | S74: 2018(平成30) | AD74: 1968 | AE74: 30.60545327
K75: 55 | L75: 99.76991375 | M75: 99.6461045 | N75: 98.83703303 | S75: 2019(平成31) | AD75: 1969 | AE75: 32.81905523
K76: 56 | L76: 99.78768102 | M76: 99.68352595 | N76: 98.85674027 | S76: 2020(平成32) | AD76: 1970 | AE76: 35.25401739
K77: 57 | L77: 99.79992048 | M77: 99.71052484 | N77: 98.87099304 | S77: 1950 | AD77: 1971 | AE77: 35.99509283
K78: 58 | L78: 99.80824981 | M78: 99.7297923 | N78: 98.88120222 | S78: 1951 | AD78: 1972 | AE78: 38.11245124
K79: 59 | L79: 99.8138495 | M79: 99.74339285 | N79: 98.88844492 | S79: 1952 | AD79: 1973 | AE79: 48.69924325
K80: 60 | L80: 99.81756849 | M80: 99.75288889 | N80: 98.89353388 | S80: 1953 | AD80: 1974 | AE80: 59.09354813
K81: 61 | L81: 99.82000851 | M81: 99.75944705 | N81: 98.89707528 | S81: 1954 | AD81: 1975 | AE81: 59.76725307
K82: 62 | L82: 99.82159 | M82: 99.76392701 | N82: 98.89951612 | S82: 1955 | AD82: 1976 | AE82: 64.00196988
K83: 63 | L83: 99.82260262 | M83: 99.76695407 | N83: 98.9011823 | S83: 1956 | AD83: 1977 | AE83: 67.27425105
K84: 64 | L84: 99.82324314 | M84: 99.76897719 | N84: 98.90230878 | S84: 1957 | AD84: 1978 | AE84: 71.79769854
K85: 65 | L85: 99.82364338 | M85: 99.77031463 | N85: 98.90306308 | S85: 1958 | AD85: 1979 | AE85: 78.05353018
K86: 66 | L86: 99.82389046 | M86: 99.77118917 | N86: 98.90356332 | S86: 1959 | AD86: 1980 | AE86: 85.07931034
K87: 67 | L87: 99.82404113 | M87: 99.77175481 | N87: 98.9038919 | S87: 1960 | AD87: 1981 | AE87: 86.04174597
K88: 68 | L88: 99.8241319 | M88: 99.77211669 | N88: 98.90410565 | S88: 1961 | AD88: 1982 | AE88: 86.33047666
K89: 69 | L89: 99.82418592 | M89: 99.77234568 | N89: 98.90424337 | S89: 1962 | AD89: 1983 | AE89: 86.13798954
K90: 70 | L90: 99.82421768 | M90: 99.77248901 | N90: 98.90433126 | S90: 1963 | AD90: 1984 | AE90: 87.58164299
K91: 71 | L91: 99.82423613 | M91: 99.77257775 | N91: 98.9043868 | S91: 1964 | AD91: 1985 | AE91: 87.296806
K92: 72 | L92: 99.82424671 | M92: 99.77263209 | N92: 98.90442157 | S92: 1965 | AD92: 1986 | AE92: 86.24272821
K93: 73 | L93: 99.82425271 | M93: 99.77266501 | N93: 98.90444313 | S93: 1966 | AD93: 1987 | AE93: 86.81767973
K94: 74 | L94: 99.82425607 | M94: 99.77268473 | N94: 98.90445636 | S94: 1967 | AD94: 1988 | AE94: 88.44670904
K95: 75 | L95: 99.82425793 | M95: 99.77269642 | N95: 98.90446441 | S95: 1968 | AD95: 1989 | AE95: 92.56719494
K96: 76 | L96: 99.82425894 | M96: 99.77270327 | N96: 98.90446926 | S96: 1969 | AD96: 1990 | AE96: 95.82525356
K97: 77 | L97: 99.82425949 | M97: 99.77270725 | N97: 98.90447215 | S97: 1970 | AD97: 1991 | AE97: 98.41253541
K98: 78 | L98: 99.82425978 | M98: 99.77270953 | N98: 98.90447386 | S98: 1971 | AD98: 1992 | AE98: 99.56243845
K99: 79 | L99: 99.82425994 | M99: 99.77271082 | N99: 98.90447486 | S99: 1972 | AD99: 1993 | AE99: 99.37078795
K100: 80 | L100: 99.82426002 | M100: 99.77271154 | N100: 98.90447544 | S100: 1973 | AD100: 1994 | AE100: 99.56243845
K101: 81 | L101: 99.82426006 | M101: 99.77271195 | N101: 98.90447577 | S101: 1974 | AD101: 1995 | AE101: 99.75408896
K102: 82 | L102: 99.82426008 | M102: 99.77271217 | N102: 98.90447596 | S102: 1975 | AD102: 1996 | AE102: 99.48121241
K103: 83 | L103: 99.82426009 | M103: 99.77271229 | N103: 98.90447607 | S103: 1976 | AD103: 1997 | AE103: 100.4352284
K104: 84 | L104: 99.8242601 | M104: 99.77271235 | N104: 98.90447613 | S104: 1977 | AD104: 1998 | AE104: 98.85065732
K105: 85 | L105: 99.8242601 | M105: 99.77271239 | N105: 98.90447616 | S105: 1978 | AD105: 1999 | AE105: 97.78563595
K106: 86 | L106: 99.8242601 | M106: 99.7727124 | N106: 98.90447618 | S106: 1979 | AD106: 2000 | AE106: 97.99918334
K107: 87 | L107: 99.8242601 | M107: 99.77271241 | N107: 98.90447619 | S107: 1980 | AD107: 2001 | AE107: 96.13719886
K108: 88 | L108: 99.8242601 | M108: 99.77271242 | N108: 98.90447619 | S108: 1981 | AD108: 2002 | AE108: 95.45120457
K109: 89 | L109: 99.8242601 | M109: 99.77271242 | N109: 98.9044762 | S109: 1982 | AD109: 2003 | AE109: 96.62719477
K110: 90 | L110: 99.8242601 | M110: 99.77271242 | N110: 98.9044762 | S110: 1983 | AD110: 2004 | AE110: 98.29318089
K111: 91 | L111: 99.8242601 | M111: 99.77271242 | N111: 98.9044762 | S111: 1984 | AD111: 2005 | AE111: 100
K112: 92 | L112: 99.8242601 | M112: 99.77271242 | N112: 98.9044762 | S112: 1985 | AD112: 2006 | AE112: 101.8
K113: 93 | L113: 99.8242601 | M113: 99.77271242 | N113: 98.9044762 | S113: 1986 | AD113: 2007 | AE113: 105
K114: 94 | L114: 99.8242601 | M114: 99.77271242 | N114: 98.9044762 | S114: 1987 | AD114: 2008 | AE114: 110.9
K115: 95 | L115: 99.8242601 | M115: 99.77271242 | N115: 98.9044762 | S115: 1988 | AD115: 2009 | AE115: 105.8
K116: 96 | L116: 99.8242601 | M116: 99.77271242 | N116: 98.9044762 | S116: 1989 | AD116: 2010 | AE116: 106.1
K117: 97 | L117: 99.8242601 | M117: 99.77271242 | N117: 98.9044762 | S117: 1990 | AD117: 2011 | AE117: 101
K118: 98 | L118: 99.8242601 | M118: 99.77271242 | N118: 98.9044762 | S118: 1991 | AD118: 2012 | AE118: 100.1
K119: 99 | L119: 99.8242601 | M119: 99.77271242 | N119: 98.9044762 | S119: 1992 | AD119: 2013 | AE119: 100.1
K120: 100 | L120: 99.8242601 | M120: 99.77271242 | N120: 98.9044762 | S120: 1993 | AD120: 2014 | AE120: 100.1
K121: 101 | L121: 99.8242601 | M121: 99.77271242 | N121: 98.9044762 | S121: 1994 | AD121: 2015 | AE121: 100.1
K122: 102 | L122: 99.8242601 | M122: 99.77271242 | N122: 98.9044762 | S122: 1995 | AD122: 2016 | AE122: 100.1
K123: 103 | L123: 99.8242601 | M123: 99.77271242 | N123: 98.9044762 | S123: 1996 | AD123: 2017 | AE123: 100.1
K124: 104 | L124: 99.8242601 | M124: 99.77271242 | N124: 98.9044762 | S124: 1997 | AD124: 2018 | AE124: 100.1
K125: 105 | L125: 99.8242601 | M125: 99.77271242 | N125: 98.9044762 | S125: 1998 | AD125: 2019 | AE125: 100.1
K126: 106 | L126: 99.8242601 | M126: 99.77271242 | N126: 98.9044762 | S126: 1999 | AD126: 2020 | AE126: 100.1
K127: 107 | L127: 99.8242601 | M127: 99.77271242 | N127: 98.9044762 | S127: 2000
K128: 108 | L128: 99.8242601 | M128: 99.77271242 | N128: 98.9044762 | S128: 2001
K129: 109 | L129: 99.8242601 | M129: 99.77271242 | N129: 98.9044762 | S129: 2002
K130: 110 | L130: 99.8242601 | M130: 99.77271242 | N130: 98.9044762 | S130: 2003
K131: 111 | L131: 99.8242601 | M131: 99.77271242 | N131: 98.9044762 | S131: 2004
K132: 112 | L132: 99.8242601 | M132: 99.77271242 | N132: 98.9044762 | S132: 2005
K133: 113 | L133: 99.8242601 | M133: 99.77271242 | N133: 98.9044762 | S133: 2006
K134: 114 | L134: 99.8242601 | M134: 99.77271242 | N134: 98.9044762 | S134: 2007
K135: 115 | L135: 99.8242601 | M135: 99.77271242 | N135: 98.9044762 | S135: 2008
K136: 116 | L136: 99.8242601 | M136: 99.77271242 | N136: 98.9044762 | S136: 2009
K137: 117 | L137: 99.8242601 | M137: 99.77271242 | N137: 98.9044762 | S137: 2010
K138: 118 | L138: 99.8242601 | M138: 99.77271242 | N138: 98.9044762 | S138: 2011
K139: 119 | L139: 99.8242601 | M139: 99.77271242 | N139: 98.9044762 | S139: 2012
K140: 120 | L140: 99.8242601 | M140: 99.77271242 | N140: 98.9044762 | S140: 2013
S141: 2014
S142: 2015
S143: 2016
S144: 2017
S145: 2018
S146: 2019
S147: 2020

Sheet Calc (hidden)
Q1: 相違項目数
P2: × | Q2: =COUNTIF($P$5:$P$68,P2) -> 7 | R2: {RngSouiChk}
C3: プロセス選定途中の演算 | N3: ■シミュレート実行後ﾃﾞｰﾀ保存 | AB3: ■影響水量■
C4: Key | D4: 原水レベル | E4: 浄水レベル | F4: プロセス(原水ﾚﾍﾞﾙ+浄水ﾚﾍﾞﾙ*ｎ) | H4: 推奨ﾌﾟﾛｾｽCode | O4: 入力画面 | Q4: 前回格納 | AB4: 電気設備 | AC4: 機械設備 | AD4: 計装設備 | AE4: 最大影響水量 | AF4: 損失額
B5: 濁度 | C5: =IF('入力情報(2)'!T12=1,+'入力情報(2)'!H9&"!"&'入力情報(2)'!F11&"!"&'入力情報(2)'!H11,IF('入力情報(2)'!T11=1,+'入力情報(2)'!G9&"!"&'入力情報(2)'!F11&"!"&'入力情報(2)'!G11,0)) -> 0 | D5: =VLOOKUP(C5,Mas原浄レベル,6,FALSE) ->  | E5: =VLOOKUP(C12,Mas原浄レベル,6,FALSE) ->  | F5: =+D5+E5 ->  | H5: =+B5&"除去プロセス!"&F5 ->  | N5: 作成日 | O5: =プレビュー!G9 -> 00:00:00 | P5: =IF(O5=Q5,"○","×") -> ○
B6: TOC | C6: =IF('入力情報(2)'!T12=1,+'入力情報(2)'!H9&"!"&'入力情報(2)'!F12&"!"&'入力情報(2)'!H12,IF('入力情報(2)'!T11=1,+'入力情報(2)'!G9&"!"&'入力情報(2)'!F12&"!"&'入力情報(2)'!G12,0)) -> 0 | D6: =VLOOKUP(C6,Mas原浄レベル,6,FALSE) ->  | E6: =VLOOKUP(C13,Mas原浄レベル,6,FALSE) ->  | F6: =(+D6+E6)*10 ->  | H6: =+B6&"除去プロセス!"&F6 ->  | J6: ｶｰｿﾙ移動設定 | K6: FALSE | N6: 事業体名 | O6: =プレビュー!G10 -> 0 | P6: ○
B7: カビ臭 | C7: =IF('入力情報(2)'!T12=1,+'入力情報(2)'!H9&"!"&'入力情報(2)'!F13&"!"&'入力情報(2)'!H13,IF('入力情報(2)'!T11=1,+'入力情報(2)'!G9&"!"&'入力情報(2)'!F13&"!"&'入力情報(2)'!G13,0)) -> 0 | D7: =VLOOKUP(C7,Mas原浄レベル,6,FALSE) ->  | E7: =VLOOKUP(C14,Mas原浄レベル,6,FALSE) ->  | F7: =(+D7+E7)*100 ->  | H7: =+B7&"除去プロセス!"&F7 ->  | J7: 移動方向 | K7: -4121 | N7: 所在地 | O7: =プレビュー!G11 ->  | P7: ×
B8: THM | C8: =IF('入力情報(2)'!T12=1,+'入力情報(2)'!H9&"!"&'入力情報(2)'!F14&"!"&'入力情報(2)'!H14,IF('入力情報(2)'!T11=1,+'入力情報(2)'!G9&"!"&'入力情報(2)'!F14&"!"&'入力情報(2)'!G14,0)) -> 0 | D8: =VLOOKUP(C8,Mas原浄レベル,6,FALSE) ->  | E8: =VLOOKUP(C15,Mas原浄レベル,6,FALSE) ->  | F8: =(+D8+E8)*1000 ->  | H8: =+B8&"除去プロセス!"&F8 ->  | N8: 記入者 | O8: =プレビュー!G12 -> 0 | P8: ○
N9: 所属 | O9: =プレビュー!G13 -> 0 | P9: ○
C10: プロセス選定 | N10: 連絡先 | O10: =プレビュー!G14 -> 0 | P10: ○
C11: Key | D11: 原水レベル | E11: 浄水レベル | F11: 推奨プロセス | H11: ■ﾘｽｸ損害額 影響水量■ | N11: 浄水場名 | O11: =プレビュー!$G$19 -> 0 | P11: ○
B12: 濁度 | C12: =+'入力情報(2)'!I9&"!"&'入力情報(2)'!F11&"!"&'入力情報(2)'!I11 -> 浄水レベル!濁度! | D12: =VLOOKUP(C5,Mas原浄レベル,5,FALSE) ->  | E12: =VLOOKUP(C12,Mas原浄レベル,5,FALSE) ->  | F12: =VLOOKUP(H5,Mas濁度除去プロセス,4,FALSE) ->  | H12: 機械故障率 | I12: 0.2091 | J12: 0.7558 | K12: 0.2468 | N12: 現在の浄水量（日最大） | O12: =プレビュー!H20 -> 0 | P12: ○
B13: TOC | C13: =+'入力情報(2)'!I9&"!"&'入力情報(2)'!F12&"!"&'入力情報(2)'!I12 -> 浄水レベル!TOC! | D13: =VLOOKUP(C6,Mas原浄レベル,5,FALSE) ->  | E13: =VLOOKUP(C13,Mas原浄レベル,5,FALSE) ->  | F13: =VLOOKUP(H6,Mas濁度除去プロセス,4,FALSE) ->  | G13: {ProTOC} | H13: 電気故障率 | I13: 0.2661 | J13: 2.3486 | K13: 2.2706 | N13: 現在の給水人口 | O13: =プレビュー!H21 -> 0 | P13: ○
B14: カビ臭 | C14: =+'入力情報(2)'!I9&"!"&'入力情報(2)'!F13&"!"&'入力情報(2)'!I13 -> 浄水レベル!カビ臭! | D14: =VLOOKUP(C7,Mas原浄レベル,5,FALSE) ->  | E14: =VLOOKUP(C14,Mas原浄レベル,5,FALSE) ->  | F14: =VLOOKUP(H7,Mas濁度除去プロセス,4,FALSE) ->  | G14: {ProKabi} | H14: 計装故障率 | I14: 0.3058 | J14: 1.9823 | K14: 1.2912 | N14: 給水原価 | O14: =プレビュー!H22 -> 0 | P14: ○
B15: THM | C15: =+'入力情報(2)'!I9&"!"&B15&"!"&'入力情報(2)'!I14 -> 浄水レベル!THM! | D15: =VLOOKUP(C8,Mas原浄レベル,5,FALSE) ->  | E15: =VLOOKUP(C15,Mas原浄レベル,5,FALSE) ->  | F15: =VLOOKUP(H8,Mas濁度除去プロセス,4,FALSE) ->  | G15: {ProTHM} | N15: 原水種類 | O15: =プレビュー!H23 -> 0 | P15: ○
H16: ■影響水量■ | N16: 浄水フロー | O16: =プレビュー!H24 -> 0 | P16: ○
H17: ﾊﾞｯｸｱｯﾌﾟ率 | I17: 0.6 | J17: {RiskBackupPer} | N17: 粉末炭の有無 | O17: =プレビュー!H25 -> 0 | P17: ○
N18: 粉末炭平均注入率 | O18: =プレビュー!H26 -> 0 | P18: ○
H19: ■被害額■ | N19: 粉末炭注入日数 | O19: =プレビュー!H27 -> 0 | P19: ○
H20: 給水人口に換算 | I20: 0.3 | J20: {RiskJinkou} | N20: 主要設備の最小系列数 | O20: =プレビュー!H28 -> 0 | P20: ○
E21: {CalSumFlg} | H21: 1人1日当たりの給水量 | I21: 3 | J21: {RiskKyusui} | N21: その系列名称 | O21: =プレビュー!H29 -> 0 | P21: ○
D22: 系列の集計 | H22: 単価(統計数字) | I22: 7428 | J22: {RiskTanka} | N22: その系入力 | O22: =プレビュー!H30 -> 0 | P22: ○
H23: 日数 | I23: 5 | J23: {RiskDay} | N23: メンテナンスレベル | O23: =プレビュー!H31 -> 0 | P23: ○
M24: 建設(更新)年 | N24: 建築構造物 | O24: =プレビュー!H37 -> 0 | P24: ○
N25: 土木構造物 | O25: =プレビュー!H38 -> 0 | P25: ○
E26: {Cal浄水No} | F26: 現在の浄水ﾌﾛｰ | G26: 粉末炭 | N26: 電気設備 | O26: =プレビュー!H39 -> 0 | P26: ○
D27: 浄水ﾌﾛｰ分類No. | E27: =IF(ISERROR(VLOOKUP(Cal浄水フロー,Master!$F$6:$G$13,2,FALSE)),0,VLOOKUP(Cal浄水フロー,Master!$F$6:$G$13,2,FALSE)) -> 0 | F27: =IF(+'入力情報(1)'!H28="凝集+沈澱+急速ろ過",G27&'入力情報(1)'!H28,+'入力情報(1)'!H28) -> 0 | G27: =IF('入力情報(1)'!H29="有","粉末炭+","") ->  | N27: 機械設備 | O27: =プレビュー!H40 -> 0 | P27: ○
F28: {Cal浄水フロー} | N28: 計装設備 | O28: =プレビュー!H41 -> 0 | P28: ○
D29: ■浄水フロー 設備費■ | H29: ■高度処理による便益■ | M29: 取得金額 | N29: 建築構造物 | O29: =プレビュー!I37 -> 0 | P29: ○
D30: 電気 | E30: =VLOOKUP(Cal浄水No,設備費と運転費!$B$20:$M$33,8,FALSE)*10000 ->  | F30: {Cal電気_浄水Flw} | I30: 浄水フロー | J30: 推奨フロー | N30: 土木構造物 | O30: =プレビュー!I38 -> 0 | P30: ○
D31: 機械 | E31: =VLOOKUP(Cal浄水No,設備費と運転費!$B$20:$M$33,9,FALSE)*10000 ->  | F31: {Cal機械_浄水Flw} | H31: 粉末炭 | I31: =IF(ISERROR(FIND(H31,Cal浄水フロー)),0,FIND(H31,Cal浄水フロー)) -> 0 | J31: =IF(ISERROR(FIND(H31,Cal希望浄水フロー)),0,FIND(H31,Cal希望浄水フロー)) -> 0 | N31: 電気設備 | O31: =プレビュー!I39 -> 0 | P31: ○
D32: 計装 | E32: =VLOOKUP(Cal浄水No,設備費と運転費!$B$20:$M$33,10,FALSE)*10000 ->  | F32: {Cal計装_浄水Flw} | H32: 粒状炭 | I32: =IF(ISERROR(FIND(H32,Cal浄水フロー)),0,FIND(H32,Cal浄水フロー)) -> 0 | J32: =IF(ISERROR(FIND(H32,Cal希望浄水フロー)),0,FIND(H32,Cal希望浄水フロー)) -> 0 | N32: 機械設備 | O32: =プレビュー!I40 -> 0 | P32: ○
D33: 土木 | E33: =VLOOKUP(Cal浄水No,設備費と運転費!$B$20:$M$33,11,FALSE)*10000 ->  | F33: {Cal土木_浄水Flw} | H33: オゾン | I33: =IF(ISERROR(FIND(H33,Cal浄水フロー)),0,FIND(H33,Cal浄水フロー)) -> 0 | J33: =IF(ISERROR(FIND(H33,Cal希望浄水フロー)),0,FIND(H33,Cal希望浄水フロー)) -> 0 | N33: 計装設備 | O33: =プレビュー!I41 -> 0 | P33: ○
D34: 建築 | E34: =VLOOKUP(Cal浄水No,設備費と運転費!$B$20:$M$33,12,FALSE)*10000 ->  | F34: {Cal建築_浄水Flw} | H34: 高度処理判定 | I34: =SUM(I31:I33) -> 0 | J34: =SUM(J31:J33) -> 0 | N34: 更新する場合の浄水量 | O34: =プレビュー!H45 -> 0 | P34: ○
D35: 合計 | E35: =SUM(E30:E34) ->  | M35: 現状の原水水質 | N35: 濁度 | O35: =プレビュー!G50 -> 0 | P35: ○
E36: {Cal希望浄水No} | F36: 推奨浄水ﾌﾛｰ | G36: 粉末炭 | N36: TOC | O36: =プレビュー!G51 -> 0 | P36: ○
D37: 浄水ﾌﾛｰ分類No. | E37: =IF(ISERROR(VLOOKUP(F37,Master!$F$24:$G$37,2,FALSE)),0,VLOOKUP(F37,Master!$F$24:$G$37,2,FALSE)) -> 0 | F37: =+'入力情報(2)'!G26 -> 0 | G37: =IF(Cal希望浄水フロー=0,"",IF(ISERROR(FIND("粉末炭",Cal希望浄水フロー)),"無","有")) ->  | N37: カビ臭 | O37: =プレビュー!G52 -> 0 | P37: ○
F38: {Cal希望浄水フロー} | N38: THMFP | O38: =プレビュー!G53 -> 0 | P38: ○
D39: ■希望フロー 設備費■ | H39: ■ｸﾘﾌﾟﾄｽﾎﾟﾘｼﾞｳﾑによる便益(膜ろ過)■ | M39: 将来予想される原水水質 | N39: 濁度 | O39: =プレビュー!H50 -> 0 | P39: ○
D40: 電気 | E40: =VLOOKUP(Cal希望浄水No,設備費と運転費!$B$20:$M$33,8,FALSE)*10000 ->  | F40: {Cal電気_希望Flw} | I40: 浄水フロー | J40: 推奨フロー | N40: TOC | O40: =プレビュー!H51 -> 0 | P40: ○
D41: 機械 | E41: =VLOOKUP(Cal希望浄水No,設備費と運転費!$B$20:$M$33,9,FALSE)*10000 ->  | F41: {Cal機械_希望Flw} | H41: 膜ろ過 | I41: =IF(ISERROR(FIND(H41,Cal浄水フロー)),0,FIND(H41,Cal浄水フロー)) -> 0 | J41: =IF(ISERROR(FIND(H41,Cal希望浄水フロー)),0,FIND(H41,Cal希望浄水フロー)) -> 0 | N41: カビ臭 | O41: =プレビュー!H52 -> 0 | P41: ○
D42: 計装 | E42: =VLOOKUP(Cal希望浄水No,設備費と運転費!$B$20:$M$33,10,FALSE)*10000 ->  | F42: {Cal計装_希望Flw} | N42: THMFP | O42: =プレビュー!H53 -> 0 | P42: ○
D43: 土木 | E43: =VLOOKUP(Cal希望浄水No,設備費と運転費!$B$20:$M$33,11,FALSE)*10000 ->  | F43: {Cal土木_希望Flw} | M43: 要求される浄水水質 | N43: 濁度 | O43: =プレビュー!I50 -> 0 | P43: ○
D44: 建築 | E44: =VLOOKUP(Cal希望浄水No,設備費と運転費!$B$20:$M$33,12,FALSE)*10000 ->  | F44: {Cal建築_希望Flw} | N44: TOC | O44: =プレビュー!I51 -> 0 | P44: ○
D45: 合計 | E45: =SUM(E40:E44) ->  | N45: カビ臭 | O45: =プレビュー!I52 -> 0 | P45: ○
N46: THMFP | O46: =プレビュー!I53 -> 0 | P46: ○
M47: シナリオ選択 | N47: 推奨フロー | O47: =プレビュー!G55 -> 0 | P47: ○
D48: ■運転費原価■ | H48: ■粉末炭の運転費係数■ | N48: シナリオ１ | P48: ○
D49: 希望フロー | E49: =VLOOKUP(Cal希望浄水No,設備費と運転費!$B$38:$J$51,9,FALSE) ->  | H49: 粉末炭平均注入率 | I49: 10 | J49: {CalFuntanPer} | N49: シナリオ２ | O49: =プレビュー!E63 ->  | P49: ○
H50: 粉末炭注入日数 | I50: 365 | J50: {CalFuntanDay} | N50: シナリオ３ | O50: =プレビュー!E64 ->  | P50: ○
N51: シナリオ４ | O51: =プレビュー!E65 ->  | P51: ○
H52: ■マスター変更既定値■ | N52: シナリオ５ | O52: =プレビュー!E66 ->  | P52: ○
H53: 修繕費補正係数 | I53: 0.3 | M53: ﾏｽﾀｰ変更 | N53: 修繕費補正係数 | O53: =マスター変更!$C$7 -> 0.3 | P53: ○ | Q53: 0.3
H54: 【設備費】 | N54: 設備費基準金額 | O54: =マスター変更!$C$10 -> 159900 | P54: =IF(O54=Q54,"○","×") -> ○ | Q54: 159900
H55: 設備費基準金額 | I55: 159900 | N55: 基準給水原価 | O55: =マスター変更!C19 -> 180 | P55: ○ | Q55: 180
N56: 変動費係数 | O56: =マスター変更!C20 -> 0.1 | P56: × | Q56: 0.13
H57: 【運転費】 | N57: 職員労務単価 | O57: =マスター変更!C25 -> 30000 | P57: ○ | Q57: 30000
H58: １．変動費（電力、燃料、薬品費） | N58: 職員数 | O58: =マスター変更!C26 -> 16 | P58: ○ | Q58: 16
H59: 基準給水原価 | I59: 180 | N59: 外注労務単価 | O59: =マスター変更!C27 -> 22000 | P59: × | Q59: 24000
H60: 変動費係数 | I60: 0.1 | N60: 外注者数 | O60: =マスター変更!C28 -> 6 | P60: ○ | Q60: 6
N61: 浄水量 | O61: =マスター変更!F30 -> 20000 | P61: ○ | Q61: 20000
H62: ２．人件費 | N62: 職員労務単価 | O62: =マスター変更!C33 -> 30000 | P62: ○ | Q62: 30000
H63: 人件費①：浄水フローに”膜ろ過”を含まない場合 | N63: 職員数 | O63: =マスター変更!C34 -> 9 | P63: × | Q63: 12
H64: 職員労務単価 | I64: 30000 | N64: 外注労務単価 | O64: =マスター変更!C35 -> 22000 | P64: × | Q64: 24000
H65: 職員数 | I65: 16 | N65: 外注者数 | O65: =マスター変更!C36 -> 10 | P65: × | Q65: 6
H66: 外注労務単価 | I66: 22000 | J66: 浄水量 | N66: 浄水量 | O66: =マスター変更!F38 -> 20000 | P66: ○ | Q66: 20000
H67: 外注者数 | I67: 6 | J67: 20000 | K67: m3/日 | N67: 次回更新 | O67: =+プレビュー!G61 -> 現状設備の更新時期での更新 | P67: ○ | Q67: 現状設備の更新時期での更新
N68: 次回更新年 | O68: =+プレビュー!I61 -> 2012年 | P68: × | Q68: 0
H70: 人件費②：浄水フローが”膜ろ過”を含む場合
H71: 職員労務単価 | I71: 30000
H72: 職員数 | I72: 9
H73: 外注労務単価 | I73: 22000 | J73: 浄水量
H74: 外注者数 | I74: 10 | J74: 20000 | K74: m3/日

Sheet 経年故障率表 (hidden)
D1: 耐用年数 | E1: 更新率 | F1: 故障率 | K1: 耐用年数 | L1: 更新率 | M1: 故障率 | R1: 耐用年数 | S1: 更新率 | T1: 故障率
E2: =+RngEnchou機械 -> 1.370990442 | F2: 1.37 | L2: =+RngEnchou電気 -> 1.331730034 | M2: 1.33 | S2: =+RngEnchou計装 -> 1.333709096 | T2: 1.33
B3: (年) | D3: =+Master!AB8 -> 15 | E3: =ROUND(+D3*E2,0) -> 21 | F3: =ROUND(+D3*F2,0)+1 -> 22 | I3: (年) | K3: =+Master!AB7 -> 20 | L3: =ROUND(+K3*L2,0) -> 27 | M3: =ROUND(+K3*M2,0)+1 -> 28 | P3: (年) | R3: =+Master!AB9 -> 10 | S3: =ROUND(+R3*S2,0) -> 13 | T3: =ROUND(+R3*T2,0)+1 -> 14
D8: ■リスク損害額
D11: 経過 | E11: 機械設備 | K11: 経過 | L11: 電気設備 | R11: 経過 | S11: 計装設備
B13: (年) | D13: 年数 | E13: 更新率 | F13: 故障率及び 修繕費係数 | G13: 修繕実施 | I13: (年) | K13: 年数 | L13: 更新率 | M13: 故障率及び 修繕費係数 | N13: 修繕実施 | P13: (年) | R13: 年数 | S13: 更新率 | T13: 故障率及び 修繕費係数 | U13: 修繕実施
B14: =+'入力情報(1)'!H44 -> 0 | C14: =B14+1 -> 1 | D14: 0 | E14: =VLOOKUP(D14,Rng更新率表,2,FALSE)/$E$2/100 -> 0.0005347586513 | F14: 0 | G14: =IF(F14<>0,"修繕","") ->  | I14: =+'入力情報(1)'!H43 -> 0 | K14: 0 | L14: =VLOOKUP(K14,Rng更新率表,3,FALSE)/$L$2/100 -> 0.0006497371173 | M14: 0 | N14: =IF(M14<>0,"修繕","") ->  | P14: =+'入力情報(1)'!H45 -> 0 | R14: 0 | S14: =VLOOKUP(R14,Rng更新率表,4,FALSE)/$S$2/100 -> 0.002377912025 | T14: 0 | U14: =IF(T14<>0,"修繕","") -> 
B15: =B14+1 -> 1 | C15: 2 | D15: =D14+1 -> 1 | E15: 0.001263776421 | F15: 0 | I15: =I14+1 -> 1 | K15: =K14+1 -> 1 | L15: 0.00151423687 | M15: 0 | P15: =P14+1 -> 1 | R15: =R14+1 -> 1 | S15: 0.005326721693 | T15: 0
B16: 2 | C16: 3 | D16: 2 | E16: 0.002245580559 | F16: 0 | I16: 2 | K16: 2 | L16: 0.002651983621 | M16: 0 | P16: 2 | R16: 2 | S16: 0.00894845075 | T16: 0
B17: 3 | C17: 4 | D17: 3 | E17: 0.003551805741 | F17: 0 | I17: 3 | K17: 3 | L17: 0.004133068233 | M17: 0 | P17: 3 | R17: 3 | S17: 0.01335403417 | T17: 0
B18: 4 | C18: 5 | D18: 4 | E18: 0.005268597795 | F18: 0 | I18: 4 | K18: 4 | L18: 0.006040142783 | M18: 0 | P18: 4 | R18: 4 | S18: 0.01866176828 | T18: 0
B19: 5 | C19: 6 | D19: 5 | E19: 0.007497668205 | F19: 0 | I19: 5 | K19: 5 | L19: 0.008469039266 | M19: 0 | P19: 5 | R19: 5 | S19: 0.02499511325 | T19: 0
B20: 6 | C20: 7 | D20: 6 | E20: 0.01035681417 | F20: 0 | I20: 6 | K20: 6 | L20: 0.01152891561 | M20: 0 | P20: 6 | R20: 6 | S20: 0.03247983028 | T20: 0
B21: 7 | C21: 8 | D21: 7 | E21: 0.0139797056 | F21: 0 | I21: 7 | K21: 7 | L21: 0.01534178811 | M21: 0 | P21: 7 | R21: 7 | S21: 0.0412404713 | T21: 0
B22: 8 | C22: 9 | D22: 8 | E22: 0.01851474181 | F22: 0 | I22: 8 | K22: 8 | L22: 0.0200413159 | M22: 0 | P22: 8 | R22: 8 | S22: 0.05139628301 | T22: 0
B23: 9 | C23: 10 | D23: 9 | E23: 0.02412280176 | F23: 0 | I23: 9 | K23: 9 | L23: 0.02577072322 | M23: 0 | P23: 9 | R23: 9 | S23: 0.06305663479 | T23: 0
B24: 10 | C24: 11 | D24: 10 | E24: 0.03097375474 | F24: 0 | I24: 10 | K24: 10 | L24: 0.03267977914 | M24: 0 | P24: 10 | R24: 10 | S24: 0.07631612789 | T24: 0
B25: 11 | C25: 12 | D25: 11 | E25: 0.03924166539 | F25: 0 | I25: 11 | K25: 11 | L25: 0.04092080456 | M25: 0 | P25: 11 | R25: 11 | S25: 0.09124958803 | T25: 0
B26: 12 | C26: 13 | D26: 12 | E26: 0.04909871658 | F26: 0 | I26: 12 | K26: 12 | L26: 0.05064373847 | M26: 0 | P26: 12 | R26: 12 | S26: 0.1079071804 | T26: 0
B27: 13 | C27: 14 | D27: 13 | E27: 0.06070798088 | F27: 0 | I27: 13 | K27: 13 | L27: 0.06199036992 | M27: 0 | P27: 13 | R27: 13 | S27: 0.1263099109 | T27: 0
B28: 14 | C28: 15 | D28: 14 | E28: 0.07421528985 | F28: 0 | I28: 14 | K28: 14 | L28: 0.07508792093 | M28: 0 | P28: 14 | R28: 14 | S28: 0.1464457886 | T28: 0
B29: 15 | C29: 16 | D29: 15 | E29: 0.08974056906 | F29: 0 | I29: 15 | K29: 15 | L29: 0.09004224486 | M29: 0 | P29: 15 | R29: 15 | S29: 0.1682669125 | T29: 0
B30: 16 | C30: 17 | D30: 16 | E30: 0.1073691135 | F30: 0 | I30: 16 | K30: 16 | L30: 0.1069309753 | M30: 0 | P30: 16 | R30: 16 | S30: 0.1916877233 | T30: 0
B31: 17 | C31: 18 | D31: 17 | E31: 0.1271433597 | F31: 0 | I31: 17 | K31: 17 | L31: 0.1257970156 | M31: 0 | P31: 17 | R31: 17 | S31: 0.216584607 | T31: 0
B32: 18 | C32: 19 | D32: 18 | E32: 0.1490557558 | F32: 0 | I32: 18 | K32: 18 | L32: 0.1466427907 | M32: 0 | P32: 18 | R32: 18 | S32: 0.2427969784 | T32: 0
B33: 19 | C33: 20 | D33: 19 | E33: 0.1730433257 | F33: 0 | I33: 19 | K33: 19 | L33: 0.1694256838 | M33: 0 | P33: 19 | R33: 0 | S33: 0.002377912025 | T33: 0
B34: 20 | C34: 21 | D34: 20 | E34: 0.1989844673 | F34: 0 | I34: 20 | K34: 20 | L34: 0.1940550498 | M34: 0 | P34: 20 | R34: 1 | S34: 0.005326721693 | T34: 0
B35: 21 | C35: 22 | D35: 21 | E35: 0.2266984132 | F35: 0 | I35: 21 | K35: 21 | L35: 0.2203911295 | M35: 0 | P35: 21 | R35: 2 | S35: 0.00894845075 | T35: 0
B36: 22 | C36: 23 | D36: 22 | E36: 0.2559476202 | F36: 0 | I36: 22 | K36: 22 | L36: 0.2482460906 | M36: 0 | P36: 22 | R36: 3 | S36: 0.01335403417 | T36: 0
B37: 23 | C37: 24 | D37: 23 | E37: 0.2864431565 | F37: 0 | I37: 23 | K37: 23 | L37: 0.2773872966 | M37: 0 | P37: 23 | R37: 4 | S37: 0.01866176828 | T37: 0
B38: 24 | C38: 25 | D38: 0 | E38: 0.0005347586513 | F38: 0 | I38: 24 | K38: 24 | L38: 0.3075427609 | M38: 0 | P38: 24 | R38: 5 | S38: 0.02499511325 | T38: 0
B39: 25 | C39: 26 | D39: 1 | E39: 0.001263776421 | F39: 0 | I39: 25 | K39: 25 | L39: 0.3384085977 | M39: 0 | P39: 25 | R39: 6 | S39: 0.03247983028 | T39: 0
B40: 26 | C40: 27 | D40: 2 | E40: 0.002245580559 | F40: 0 | I40: 26 | K40: 26 | L40: 0.3696581373 | M40: 0 | P40: 26 | R40: 7 | S40: 0.0412404713 | T40: 0
B41: 27 | C41: 28 | D41: 3 | E41: 0.003551805741 | F41: 0 | I41: 27 | K41: 27 | L41: 0.4009522562 | M41: 0 | P41: 27 | R41: 8 | S41: 0.05139628301 | T41: 0
B42: 28 | C42: 29 | D42: 4 | E42: 0.005268597795 | F42: 0 | I42: 28 | K42: 28 | L42: 0.431950377 | M42: =VLOOKUP(K42,Rng更新率表,3,FALSE)/$L$2/100 -> 0.431950377 | N42: 修繕 | P42: 28 | R42: 9 | S42: 0.06305663479 | T42: 0
B43: 29 | C43: 30 | D43: 5 | E43: 0.007497668205 | F43: 0 | I43: 29 | K43: 0 | L43: 0.0006497371173 | M43: 0 | P43: 29 | R43: 10 | S43: 0.07631612789 | T43: 0
B44: 30 | C44: 31 | D44: 6 | E44: 0.01035681417 | F44: 0 | I44: 30 | K44: 1 | L44: 0.00151423687 | M44: 0 | P44: 30 | R44: 11 | S44: 0.09124958803 | T44: 0
B45: 31 | C45: 32 | D45: 7 | E45: 0.0139797056 | F45: 0 | I45: 31 | K45: 2 | L45: 0.002651983621 | M45: 0 | P45: 31 | R45: 12 | S45: 0.1079071804 | T45: 0
B46: 32 | C46: =B46+1 -> 33 | D46: 8 | E46: =VLOOKUP(D46,Rng更新率表,2,FALSE)/$E$2/100 -> 0.01851474181 | F46: 0 | G46: =IF(F46<>0,"修繕","") ->  | I46: 32 | K46: 3 | L46: =VLOOKUP(K46,Rng更新率表,3,FALSE)/$L$2/100 -> 0.004133068233 | M46: 0 | N46: =IF(M46<>0,"修繕","") ->  | P46: 32 | R46: 13 | S46: =VLOOKUP(R46,Rng更新率表,4,FALSE)/$S$2/100 -> 0.1263099109 | T46: 0 | U46: =IF(T46<>0,"修繕","") -> 
B47: =B46+1 -> 33 | C47: 34 | D47: =D46+1 -> 9 | E47: 0.02412280176 | F47: 0 | I47: =I46+1 -> 33 | K47: =K46+1 -> 4 | L47: 0.006040142783 | M47: 0 | P47: =P46+1 -> 33 | R47: 0 | S47: 0.002377912025 | T47: 0
B48: 34 | C48: 35 | D48: 10 | E48: 0.03097375474 | F48: 0 | I48: 34 | K48: 5 | L48: 0.008469039266 | M48: 0 | P48: 34 | R48: =R47+1 -> 1 | S48: 0.005326721693 | T48: 0
B49: 35 | C49: 36 | D49: 11 | E49: 0.03924166539 | F49: 0 | I49: 35 | K49: 6 | L49: 0.01152891561 | M49: 0 | P49: 35 | R49: 2 | S49: 0.00894845075 | T49: 0
B50: 36 | C50: 37 | D50: 12 | E50: 0.04909871658 | F50: 0 | I50: 36 | K50: 7 | L50: 0.01534178811 | M50: 0 | P50: 36 | R50: 3 | S50: 0.01335403417 | T50: 0
B51: 37 | C51: 38 | D51: 13 | E51: 0.06070798088 | F51: 0 | I51: 37 | K51: 8 | L51: 0.0200413159 | M51: 0 | P51: 37 | R51: 4 | S51: 0.01866176828 | T51: 0
B52: 38 | C52: 39 | D52: 14 | E52: 0.07421528985 | F52: 0 | I52: 38 | K52: 9 | L52: 0.02577072322 | M52: 0 | P52: 38 | R52: 5 | S52: 0.02499511325 | T52: 0
B53: 39 | C53: 40 | D53: 15 | E53: 0.08974056906 | F53: 0 | I53: 39 | K53: 10 | L53: 0.03267977914 | M53: 0 | P53: 39 | R53: 6 | S53: 0.03247983028 | T53: 0
B54: 40 | C54: 41 | D54: 16 | E54: 0.1073691135 | F54: 0 | I54: 40 | K54: 11 | L54: 0.04092080456 | M54: 0 | P54: 40 | R54: 7 | S54: 0.0412404713 | T54: 0
B55: 41 | C55: 42 | D55: 17 | E55: 0.1271433597 | F55: 0 | I55: 41 | K55: 12 | L55: 0.05064373847 | M55: 0 | P55: 41 | R55: 8 | S55: 0.05139628301 | T55: 0
B56: 42 | C56: 43 | D56: 18 | E56: 0.1490557558 | F56: 0 | I56: 42 | K56: 13 | L56: 0.06199036992 | M56: 0 | P56: 42 | R56: 9 | S56: 0.06305663479 | T56: 0
B57: 43 | C57: 44 | D57: 19 | E57: 0.1730433257 | F57: 0 | I57: 43 | K57: 14 | L57: 0.07508792093 | M57: 0 | P57: 43 | R57: 10 | S57: 0.07631612789 | T57: 0
B58: 44 | C58: 45 | D58: 20 | E58: 0.1989844673 | F58: 0 | I58: 44 | K58: 15 | L58: 0.09004224486 | M58: 0 | P58: 44 | R58: 11 | S58: 0.09124958803 | T58: 0
B59: 45 | C59: 46 | D59: 21 | E59: 0.2266984132 | F59: 0 | I59: 45 | K59: 16 | L59: 0.1069309753 | M59: 0 | P59: 45 | R59: 12 | S59: 0.1079071804 | T59: 0
B60: 46 | C60: 47 | D60: 0 | E60: 0.0005347586513 | F60: 0 | I60: 46 | K60: 17 | L60: 0.1257970156 | M60: 0 | P60: 46 | R60: 13 | S60: 0.1263099109 | T60: 0
B61: 47 | C61: 48 | D61: 1 | E61: 0.001263776421 | F61: 0 | I61: 47 | K61: 18 | L61: 0.1466427907 | M61: 0 | P61: 47 | R61: 0 | S61: 0.002377912025 | T61: 0
B62: 48 | C62: 49 | D62: 2 | E62: 0.002245580559 | F62: 0 | I62: 48 | K62: 19 | L62: 0.1694256838 | M62: 0 | P62: 48 | R62: 1 | S62: 0.005326721693 | T62: 0
B63: 49 | C63: 50 | D63: 3 | E63: 0.003551805741 | F63: 0 | I63: 49 | K63: 20 | L63: 0.1940550498 | M63: 0 | P63: 49 | R63: 2 | S63: 0.00894845075 | T63: 0
B64: 50 | C64: 51 | D64: 4 | E64: 0.005268597795 | F64: 0 | I64: 50 | K64: 21 | L64: 0.2203911295 | M64: 0 | P64: 50 | R64: 3 | S64: 0.01335403417 | T64: 0
B65: 51 | C65: 52 | D65: 5 | E65: 0.007497668205 | F65: 0 | I65: 51 | K65: 22 | L65: 0.2482460906 | M65: 0 | P65: 51 | R65: 4 | S65: 0.01866176828 | T65: 0
B66: 52 | C66: 53 | D66: 6 | E66: 0.01035681417 | F66: 0 | I66: 52 | K66: 23 | L66: 0.2773872966 | M66: 0 | P66: 52 | R66: 5 | S66: 0.02499511325 | T66: 0
B67: 53 | C67: 54 | D67: 7 | E67: 0.0139797056 | F67: 0 | I67: 53 | K67: 24 | L67: 0.3075427609 | M67: 0 | P67: 53 | R67: 6 | S67: 0.03247983028 | T67: 0
B68: 54 | C68: 55 | D68: 8 | E68: 0.01851474181 | F68: 0 | I68: 54 | K68: 25 | L68: 0.3384085977 | M68: 0 | P68: 54 | R68: 7 | S68: 0.0412404713 | T68: 0
B69: 55 | C69: 56 | D69: 9 | E69: 0.02412280176 | F69: 0 | I69: 55 | K69: 26 | L69: 0.3696581373 | M69: 0 | P69: 55 | R69: 8 | S69: 0.05139628301 | T69: 0
B70: 56 | C70: 57 | D70: 10 | E70: 0.03097375474 | F70: 0 | I70: 56 | K70: 27 | L70: 0.4009522562 | M70: 0 | P70: 56 | R70: 9 | S70: 0.06305663479 | T70: 0
B71: 57 | C71: 58 | D71: 11 | E71: 0.03924166539 | F71: 0 | I71: 57 | K71: 28 | L71: 0.431950377 | M71: =VLOOKUP(K71,Rng更新率表,3,FALSE)/$L$2/100 -> 0.431950377 | N71: 修繕 | P71: 57 | R71: 10 | S71: 0.07631612789 | T71: 0
B72: 58 | C72: 59 | D72: 12 | E72: 0.04909871658 | F72: 0 | I72: 58 | K72: 0 | L72: 0.0006497371173 | M72: 0 | P72: 58 | R72: 11 | S72: 0.09124958803 | T72: 0
B73: 59 | C73: 60 | D73: 13 | E73: 0.06070798088 | F73: 0 | I73: 59 | K73: 1 | L73: 0.00151423687 | M73: 0 | P73: 59 | R73: 12 | S73: 0.1079071804 | T73: 0
B74: 60 | C74: 61 | D74: 14 | E74: 0.07421528985 | F74: 0 | I74: 60 | K74: 2 | L74: 0.002651983621 | M74: 0 | P74: 60 | R74: 13 | S74: 0.1263099109 | T74: 0
B75: 61 | C75: 62 | D75: 15 | E75: 0.08974056906 | F75: 0 | I75: 61 | K75: 3 | L75: 0.004133068233 | M75: 0 | P75: 61 | R75: 0 | S75: 0.002377912025 | T75: 0
B76: 62 | C76: 63 | D76: 16 | E76: 0.1073691135 | F76: 0 | I76: 62 | K76: 4 | L76: 0.006040142783 | M76: 0 | P76: 62 | R76: 1 | S76: 0.005326721693 | T76: 0
B77: 63 | C77: 64 | D77: 17 | E77: 0.1271433597 | F77: 0 | I77: 63 | K77: 5 | L77: 0.008469039266 | M77: 0 | P77: 63 | R77: 2 | S77: 0.00894845075 | T77: 0
B78: 64 | C78: =B78+1 -> 65 | D78: 18 | E78: =VLOOKUP(D78,Rng更新率表,2,FALSE)/$E$2/100 -> 0.1490557558 | F78: 0 | G78: =IF(F78<>0,"修繕","") ->  | I78: 64 | K78: 6 | L78: =VLOOKUP(K78,Rng更新率表,3,FALSE)/$L$2/100 -> 0.01152891561 | M78: 0 | N78: =IF(M78<>0,"修繕","") ->  | P78: 64 | R78: 3 | S78: =VLOOKUP(R78,Rng更新率表,4,FALSE)/$S$2/100 -> 0.01335403417 | T78: 0 | U78: =IF(T78<>0,"修繕","") -> 
B79: =B78+1 -> 65 | C79: 66 | D79: =D78+1 -> 19 | E79: 0.1730433257 | F79: 0 | I79: =I78+1 -> 65 | K79: =K78+1 -> 7 | L79: 0.01534178811 | M79: 0 | P79: =P78+1 -> 65 | R79: =R78+1 -> 4 | S79: 0.01866176828 | T79: 0
B80: 66 | C80: 67 | D80: 20 | E80: 0.1989844673 | F80: 0 | I80: 66 | K80: 8 | L80: 0.0200413159 | M80: 0 | P80: 66 | R80: 5 | S80: 0.02499511325 | T80: 0
B81: 67 | C81: 68 | D81: 21 | E81: 0.2266984132 | F81: 0 | I81: 67 | K81: 9 | L81: 0.02577072322 | M81: 0 | P81: 67 | R81: 6 | S81: 0.03247983028 | T81: 0
B82: 68 | C82: 69 | D82: 0 | E82: 0.0005347586513 | F82: 0 | I82: 68 | K82: 10 | L82: 0.03267977914 | M82: 0 | P82: 68 | R82: 7 | S82: 0.0412404713 | T82: 0
B83: 69 | C83: 70 | D83: 1 | E83: 0.001263776421 | F83: 0 | I83: 69 | K83: 11 | L83: 0.04092080456 | M83: 0 | P83: 69 | R83: 8 | S83: 0.05139628301 | T83: 0
B84: 70 | C84: 71 | D84: 2 | E84: 0.002245580559 | F84: 0 | I84: 70 | K84: 12 | L84: 0.05064373847 | M84: 0 | P84: 70 | R84: 9 | S84: 0.06305663479 | T84: 0
B85: 71 | C85: 72 | D85: 3 | E85: 0.003551805741 | F85: 0 | I85: 71 | K85: 13 | L85: 0.06199036992 | M85: 0 | P85: 71 | R85: 10 | S85: 0.07631612789 | T85: 0
B86: 72 | C86: 73 | D86: 4 | E86: 0.005268597795 | F86: 0 | I86: 72 | K86: 14 | L86: 0.07508792093 | M86: 0 | P86: 72 | R86: 11 | S86: 0.09124958803 | T86: 0
B87: 73 | C87: 74 | D87: 5 | E87: 0.007497668205 | F87: 0 | I87: 73 | K87: 15 | L87: 0.09004224486 | M87: 0 | P87: 73 | R87: 12 | S87: 0.1079071804 | T87: 0
B88: 74 | C88: 75 | D88: 6 | E88: 0.01035681417 | F88: 0 | I88: 74 | K88: 16 | L88: 0.1069309753 | M88: 0 | P88: 74 | R88: 13 | S88: 0.1263099109 | T88: 0
B89: 75 | C89: 76 | D89: 7 | E89: 0.0139797056 | F89: 0 | I89: 75 | K89: 17 | L89: 0.1257970156 | M89: 0 | P89: 75 | R89: 0 | S89: 0.002377912025 | T89: 0
B90: 76 | C90: 77 | D90: 8 | E90: 0.01851474181 | F90: 0 | I90: 76 | K90: 18 | L90: 0.1466427907 | M90: 0 | P90: 76 | R90: 1 | S90: 0.005326721693 | T90: 0
B91: 77 | C91: 78 | D91: 9 | E91: 0.02412280176 | F91: 0 | I91: 77 | K91: 19 | L91: 0.1694256838 | M91: 0 | P91: 77 | R91: 2 | S91: 0.00894845075 | T91: 0
B92: 78 | C92: 79 | D92: 10 | E92: 0.03097375474 | F92: 0 | I92: 78 | K92: 20 | L92: 0.1940550498 | M92: 0 | P92: 78 | R92: 3 | S92: 0.01335403417 | T92: 0
B93: 79 | C93: 80 | D93: 11 | E93: 0.03924166539 | F93: 0 | I93: 79 | K93: 21 | L93: 0.2203911295 | M93: 0 | P93: 79 | R93: 4 | S93: 0.01866176828 | T93: 0
B94: 80 | C94: 81 | D94: 12 | E94: 0.04909871658 | F94: 0 | I94: 80 | K94: 22 | L94: 0.2482460906 | M94: 0 | P94: 80 | R94: 5 | S94: 0.02499511325 | T94: 0
B95: 81 | C95: 82 | D95: 13 | E95: 0.06070798088 | F95: 0 | I95: 81 | K95: 23 | L95: 0.2773872966 | M95: 0 | P95: 81 | R95: 6 | S95: 0.03247983028 | T95: 0
B96: 82 | C96: 83 | D96: 14 | E96: 0.07421528985 | F96: 0 | I96: 82 | K96: 24 | L96: 0.3075427609 | M96: 0 | P96: 82 | R96: 7 | S96: 0.0412404713 | T96: 0
B97: 83 | C97: 84 | D97: 15 | E97: 0.08974056906 | F97: 0 | I97: 83 | K97: 25 | L97: 0.3384085977 | M97: 0 | P97: 83 | R97: 8 | S97: 0.05139628301 | T97: 0
B98: 84 | C98: 85 | D98: 16 | E98: 0.1073691135 | F98: 0 | I98: 84 | K98: 26 | L98: 0.3696581373 | M98: 0 | P98: 84 | R98: 9 | S98: 0.06305663479 | T98: 0
B99: 85 | C99: 86 | D99: 17 | E99: 0.1271433597 | F99: 0 | I99: 85 | K99: 27 | L99: 0.4009522562 | M99: 0 | P99: 85 | R99: 10 | S99: 0.07631612789 | T99: 0
B100: 86 | C100: 87 | D100: 18 | E100: 0.1490557558 | F100: 0 | I100: 86 | K100: 28 | L100: 0.431950377 | M100: =VLOOKUP(K100,Rng更新率表,3,FALSE)/$L$2/100 -> 0.431950377 | N100: 修繕 | P100: 86 | R100: 11 | S100: 0.09124958803 | T100: 0
B101: 87 | C101: 88 | D101: 19 | E101: 0.1730433257 | F101: 0 | I101: 87 | K101: 0 | L101: 0.0006497371173 | M101: 0 | P101: 87 | R101: 12 | S101: 0.1079071804 | T101: 0
B102: 88 | C102: 89 | D102: 20 | E102: 0.1989844673 | F102: 0 | I102: 88 | K102: 1 | L102: 0.00151423687 | M102: 0 | P102: 88 | R102: 13 | S102: 0.1263099109 | T102: 0
B103: 89 | C103: 90 | D103: 21 | E103: 0.2266984132 | F103: 0 | I103: 89 | K103: 2 | L103: 0.002651983621 | M103: 0 | P103: 89 | R103: 0 | S103: 0.002377912025 | T103: 0
B104: 90 | C104: 91 | D104: 0 | E104: 0.0005347586513 | F104: 0 | I104: 90 | K104: 3 | L104: 0.004133068233 | M104: 0 | P104: 90 | R104: 1 | S104: 0.005326721693 | T104: 0
B105: 91 | C105: 92 | D105: 1 | E105: 0.001263776421 | F105: 0 | I105: 91 | K105: 4 | L105: 0.006040142783 | M105: 0 | P105: 91 | R105: 2 | S105: 0.00894845075 | T105: 0
B106: 92 | C106: 93 | D106: 2 | E106: 0.002245580559 | F106: 0 | I106: 92 | K106: 5 | L106: 0.008469039266 | M106: 0 | P106: 92 | R106: 3 | S106: 0.01335403417 | T106: 0
B107: 93 | C107: 94 | D107: 3 | E107: 0.003551805741 | F107: 0 | I107: 93 | K107: 6 | L107: 0.01152891561 | M107: 0 | P107: 93 | R107: 4 | S107: 0.01866176828 | T107: 0
B108: 94 | C108: 95 | D108: 4 | E108: 0.005268597795 | F108: 0 | I108: 94 | K108: 7 | L108: 0.01534178811 | M108: 0 | P108: 94 | R108: 5 | S108: 0.02499511325 | T108: 0
B109: 95 | C109: 96 | D109: 5 | E109: 0.007497668205 | F109: 0 | I109: 95 | K109: 8 | L109: 0.0200413159 | M109: 0 | P109: 95 | R109: 6 | S109: 0.03247983028 | T109: 0
B110: 96 | C110: =B110+1 -> 97 | D110: 6 | E110: =VLOOKUP(D110,Rng更新率表,2,FALSE)/$E$2/100 -> 0.01035681417 | F110: 0 | G110: =IF(F110<>0,"修繕","") ->  | I110: 96 | K110: 9 | L110: =VLOOKUP(K110,Rng更新率表,3,FALSE)/$L$2/100 -> 0.02577072322 | M110: 0 | N110: =IF(M110<>0,"修繕","") ->  | P110: 96 | R110: 7 | S110: =VLOOKUP(R110,Rng更新率表,4,FALSE)/$S$2/100 -> 0.0412404713 | T110: 0 | U110: =IF(T110<>0,"修繕","") -> 
B111: =B110+1 -> 97 | C111: 98 | D111: =D110+1 -> 7 | E111: 0.0139797056 | F111: 0 | I111: =I110+1 -> 97 | K111: =K110+1 -> 10 | L111: 0.03267977914 | M111: 0 | P111: =P110+1 -> 97 | R111: =R110+1 -> 8 | S111: 0.05139628301 | T111: 0
B112: 98 | C112: 99 | D112: 8 | E112: 0.01851474181 | F112: 0 | I112: 98 | K112: 11 | L112: 0.04092080456 | M112: 0 | P112: 98 | R112: 9 | S112: 0.06305663479 | T112: 0
B113: 99 | C113: 100 | D113: 9 | E113: 0.02412280176 | F113: 0 | I113: 99 | K113: 12 | L113: 0.05064373847 | M113: 0 | P113: 99 | R113: 10 | S113: 0.07631612789 | T113: 0
B114: 100 | C114: 101 | D114: 10 | E114: 0.03097375474 | F114: 0 | I114: 100 | K114: 13 | L114: 0.06199036992 | M114: 0 | P114: 100 | R114: 11 | S114: 0.09124958803 | T114: 0
B115: 101 | C115: 102 | D115: 11 | E115: 0.03924166539 | F115: 0 | I115: 101 | K115: 14 | L115: 0.07508792093 | M115: 0 | P115: 101 | R115: 12 | S115: 0.1079071804 | T115: 0
B116: 102 | C116: 103 | D116: 12 | E116: 0.04909871658 | F116: 0 | I116: 102 | K116: 15 | L116: 0.09004224486 | M116: 0 | P116: 102 | R116: 13 | S116: 0.1263099109 | T116: 0
B117: 103 | C117: 104 | D117: 13 | E117: 0.06070798088 | F117: 0 | I117: 103 | K117: 16 | L117: 0.1069309753 | M117: 0 | P117: 103 | R117: 0 | S117: 0.002377912025 | T117: 0
B118: 104 | C118: 105 | D118: 14 | E118: 0.07421528985 | F118: 0 | I118: 104 | K118: 17 | L118: 0.1257970156 | M118: 0 | P118: 104 | R118: 1 | S118: 0.005326721693 | T118: 0
B119: 105 | C119: 106 | D119: 15 | E119: 0.08974056906 | F119: 0 | I119: 105 | K119: 18 | L119: 0.1466427907 | M119: 0 | P119: 105 | R119: 2 | S119: 0.00894845075 | T119: 0
B120: 106 | C120: 107 | D120: 16 | E120: 0.1073691135 | F120: 0 | I120: 106 | K120: 19 | L120: 0.1694256838 | M120: 0 | P120: 106 | R120: 3 | S120: 0.01335403417 | T120: 0
B121: 107 | C121: 108 | D121: 17 | E121: 0.1271433597 | F121: 0 | I121: 107 | K121: 20 | L121: 0.1940550498 | M121: 0 | P121: 107 | R121: 4 | S121: 0.01866176828 | T121: 0
B122: 108 | C122: 109 | D122: 18 | E122: 0.1490557558 | F122: 0 | I122: 108 | K122: 21 | L122: 0.2203911295 | M122: 0 | P122: 108 | R122: 5 | S122: 0.02499511325 | T122: 0
B123: 109 | C123: 110 | D123: 19 | E123: 0.1730433257 | F123: 0 | I123: 109 | K123: 22 | L123: 0.2482460906 | M123: 0 | P123: 109 | R123: 6 | S123: 0.03247983028 | T123: 0
B124: 110 | C124: 111 | D124: 20 | E124: 0.1989844673 | F124: 0 | I124: 110 | K124: 23 | L124: 0.2773872966 | M124: 0 | P124: 110 | R124: 7 | S124: 0.0412404713 | T124: 0
B125: 111 | C125: 112 | D125: 21 | E125: 0.2266984132 | F125: 0 | I125: 111 | K125: 24 | L125: 0.3075427609 | M125: 0 | P125: 111 | R125: 8 | S125: 0.05139628301 | T125: 0
B126: 112 | C126: =B126+1 -> 113 | D126: 0 | E126: =VLOOKUP(D126,Rng更新率表,2,FALSE)/$E$2/100 -> 0.0005347586513 | F126: 0 | I126: 112 | K126: 25 | L126: =VLOOKUP(K126,Rng更新率表,3,FALSE)/$L$2/100 -> 0.3384085977 | M126: 0 | P126: 112 | R126: 9 | S126: =VLOOKUP(R126,Rng更新率表,4,FALSE)/$S$2/100 -> 0.06305663479 | T126: 0
B127: 113 | C127: 114 | D127: 1 | E127: 0.001263776421 | F127: 0 | I127: 113 | K127: 26 | L127: 0.3696581373 | M127: 0 | P127: 113 | R127: 10 | S127: 0.07631612789 | T127: 0
B128: 114 | C128: 115 | D128: 2 | E128: 0.002245580559 | F128: 0 | I128: 114 | K128: 27 | L128: 0.4009522562 | M128: 0 | P128: 114 | R128: 11 | S128: 0.09124958803 | T128: 0
B129: 115 | C129: 116 | D129: 3 | E129: 0.003551805741 | F129: 0 | I129: 115 | K129: 28 | L129: 0.431950377 | M129: =VLOOKUP(K129,Rng更新率表,3,FALSE)/$L$2/100 -> 0.431950377 | N129: 修繕 | P129: 115 | R129: 12 | S129: 0.1079071804 | T129: 0
B130: 116 | C130: 117 | D130: 4 | E130: 0.005268597795 | F130: 0 | I130: 116 | K130: 0 | L130: 0.0006497371173 | M130: 0 | P130: 116 | R130: 13 | S130: 0.1263099109 | T130: 0
B131: 117 | C131: 118 | D131: 5 | E131: 0.007497668205 | F131: 0 | I131: 117 | K131: 1 | L131: 0.00151423687 | M131: 0 | P131: 117 | R131: 0 | S131: 0.002377912025 | T131: 0
B132: 118 | C132: 119 | D132: 6 | E132: 0.01035681417 | F132: 0 | I132: 118 | K132: 2 | L132: 0.002651983621 | M132: 0 | P132: 118 | R132: 1 | S132: 0.005326721693 | T132: 0
B133: 119 | C133: 120 | D133: 7 | E133: 0.0139797056 | F133: 0 | I133: 119 | K133: 3 | L133: 0.004133068233 | M133: 0 | P133: 119 | R133: 2 | S133: 0.00894845075 | T133: 0
B134: 120 | C134: 121 | D134: 8 | E134: 0.01851474181 | F134: 0 | I134: 120 | K134: 4 | L134: 0.006040142783 | M134: 0 | P134: 120 | R134: 3 | S134: 0.01335403417 | T134: 0
B135: 121 | C135: 122 | D135: 9 | E135: 0.02412280176 | F135: 0 | I135: 121 | K135: 5 | L135: 0.008469039266 | M135: 0 | P135: 121 | R135: 4 | S135: 0.01866176828 | T135: 0
B136: 122 | C136: 123 | D136: 10 | E136: 0.03097375474 | F136: 0 | I136: 122 | K136: 6 | L136: 0.01152891561 | M136: 0 | P136: 122 | R136: 5 | S136: 0.02499511325 | T136: 0
B137: 123 | C137: 124 | D137: 11 | E137: 0.03924166539 | F137: 0 | I137: 123 | K137: 7 | L137: 0.01534178811 | M137: 0 | P137: 123 | R137: 6 | S137: 0.03247983028 | T137: 0
B138: 124 | C138: 125 | D138: 12 | E138: 0.04909871658 | F138: 0 | I138: 124 | K138: 8 | L138: 0.0200413159 | M138: 0 | P138: 124 | R138: 7 | S138: 0.0412404713 | T138: 0
B139: 125 | C139: 126 | D139: 13 | E139: 0.06070798088 | F139: 0 | I139: 125 | K139: 9 | L139: 0.02577072322 | M139: 0 | P139: 125 | R139: 8 | S139: 0.05139628301 | T139: 0
B140: 126 | C140: 127 | D140: 14 | E140: 0.07421528985 | F140: 0 | I140: 126 | K140: 10 | L140: 0.03267977914 | M140: 0 | P140: 126 | R140: 9 | S140: 0.06305663479 | T140: 0
B141: 127 | C141: 128 | D141: 15 | E141: 0.08974056906 | F141: 0 | I141: 127 | K141: 11 | L141: 0.04092080456 | M141: 0 | P141: 127 | R141: 10 | S141: 0.07631612789 | T141: 0
B142: 128 | C142: 129 | D142: 16 | E142: 0.1073691135 | F142: 0 | G142: =IF(F142<>0,"修繕","") ->  | I142: 128 | K142: 12 | L142: 0.05064373847 | M142: 0 | N142: =IF(M142<>0,"修繕","") ->  | P142: 128 | R142: 11 | S142: 0.09124958803 | T142: 0 | U142: =IF(T142<>0,"修繕","") -> 
B143: 129 | C143: 130 | D143: =D142+1 -> 17 | E143: 0.1271433597 | F143: 0 | I143: 129 | K143: =K142+1 -> 13 | L143: 0.06199036992 | M143: 0 | P143: 129 | R143: =R142+1 -> 12 | S143: 0.1079071804 | T143: 0
B144: 130 | C144: 131 | D144: 18 | E144: 0.1490557558 | F144: 0 | I144: 130 | K144: 14 | L144: 0.07508792093 | M144: 0 | P144: 130 | R144: 13 | S144: 0.1263099109 | T144: 0
B145: 131 | C145: 132 | D145: 19 | E145: 0.1730433257 | F145: 0 | I145: 131 | K145: 15 | L145: 0.09004224486 | M145: 0 | P145: 131 | R145: 0 | S145: 0.002377912025 | T145: 0
B146: 132 | C146: 133 | D146: 20 | E146: 0.1989844673 | F146: 0 | I146: 132 | K146: 16 | L146: 0.1069309753 | M146: 0 | P146: 132 | R146: 1 | S146: 0.005326721693 | T146: 0
B147: 133 | C147: 134 | D147: 21 | E147: 0.2266984132 | F147: 0 | I147: 133 | K147: 17 | L147: 0.1257970156 | M147: 0 | P147: 133 | R147: 2 | S147: 0.00894845075 | T147: 0
B148: 134 | C148: 135 | D148: 0 | E148: 0.0005347586513 | F148: 0 | I148: 134 | K148: 18 | L148: 0.1466427907 | M148: 0 | P148: 134 | R148: 3 | S148: 0.01335403417 | T148: 0
B149: 135 | C149: 136 | D149: 1 | E149: 0.001263776421 | F149: 0 | I149: 135 | K149: 19 | L149: 0.1694256838 | M149: 0 | P149: 135 | R149: 4 | S149: 0.01866176828 | T149: 0
B150: 136 | C150: 137 | D150: 2 | E150: 0.002245580559 | F150: 0 | I150: 136 | K150: 20 | L150: 0.1940550498 | M150: 0 | P150: 136 | R150: 5 | S150: 0.02499511325 | T150: 0
B151: 137 | C151: 138 | D151: 3 | E151: 0.003551805741 | F151: 0 | I151: 137 | K151: 21 | L151: 0.2203911295 | M151: 0 | P151: 137 | R151: 6 | S151: 0.03247983028 | T151: 0
B152: 138 | C152: 139 | D152: 4 | E152: 0.005268597795 | F152: 0 | I152: 138 | K152: 22 | L152: 0.2482460906 | M152: 0 | P152: 138 | R152: 7 | S152: 0.0412404713 | T152: 0
B153: 139 | C153: 140 | D153: 5 | E153: 0.007497668205 | F153: 0 | I153: 139 | K153: 23 | L153: 0.2773872966 | M153: 0 | P153: 139 | R153: 8 | S153: 0.05139628301 | T153: 0
B154: 140 | C154: 141 | D154: 6 | E154: 0.01035681417 | F154: 0 | I154: 140 | K154: 24 | L154: 0.3075427609 | M154: 0 | P154: 140 | R154: 9 | S154: 0.06305663479 | T154: 0
B155: 141 | C155: 142 | D155: 7 | E155: 0.0139797056 | F155: 0 | I155: 141 | K155: 25 | L155: 0.3384085977 | M155: 0 | P155: 141 | R155: 10 | S155: 0.07631612789 | T155: 0
B156: 142 | C156: 143 | D156: 8 | E156: 0.01851474181 | F156: 0 | I156: 142 | K156: 26 | L156: 0.3696581373 | M156: 0 | P156: 142 | R156: 11 | S156: 0.09124958803 | T156: 0
B157: 143 | C157: 144 | D157: 9 | E157: 0.02412280176 | F157: 0 | I157: 143 | K157: 27 | L157: 0.4009522562 | M157: 0 | P157: 143 | R157: 12 | S157: 0.1079071804 | T157: 0
B158: 144 | C158: 145 | D158: 10 | E158: 0.03097375474 | F158: 0 | I158: 144 | K158: 28 | L158: 0.431950377 | M158: =VLOOKUP(K158,Rng更新率表,3,FALSE)/$L$2/100 -> 0.431950377 | N158: 修繕 | P158: 144 | R158: 13 | S158: 0.1263099109 | T158: 0
B159: 145 | C159: 146 | D159: 11 | E159: 0.03924166539 | F159: 0 | I159: 145 | K159: 0 | L159: 0.0006497371173 | M159: 0 | P159: 145 | R159: 0 | S159: 0.002377912025 | T159: 0
B160: 146 | C160: 147 | D160: 12 | E160: 0.04909871658 | F160: 0 | I160: 146 | K160: 1 | L160: 0.00151423687 | M160: 0 | P160: 146 | R160: 1 | S160: 0.005326721693 | T160: 0
B161: 147 | C161: 148 | D161: 13 | E161: 0.06070798088 | F161: 0 | I161: 147 | K161: 2 | L161: 0.002651983621 | M161: 0 | P161: 147 | R161: 2 | S161: 0.00894845075 | T161: 0
B162: 148 | C162: 149 | D162: 14 | E162: 0.07421528985 | F162: 0 | I162: 148 | K162: 3 | L162: 0.004133068233 | M162: 0 | P162: 148 | R162: 3 | S162: 0.01335403417 | T162: 0
B163: 149 | C163: 150 | D163: 15 | E163: 0.08974056906 | F163: 0 | I163: 149 | K163: 4 | L163: 0.006040142783 | M163: 0 | P163: 149 | R163: 4 | S163: 0.01866176828 | T163: 0
B164: 150 | C164: 151 | D164: 16 | E164: 0.1073691135 | F164: 0 | I164: 150 | K164: 5 | L164: 0.008469039266 | M164: 0 | P164: 150 | R164: 5 | S164: 0.02499511325 | T164: 0
B165: 151 | C165: 152 | D165: 17 | E165: 0.1271433597 | F165: 0 | I165: 151 | K165: 6 | L165: 0.01152891561 | M165: 0 | P165: 151 | R165: 6 | S165: 0.03247983028 | T165: 0
B166: 152 | C166: 153 | D166: 18 | E166: 0.1490557558 | F166: 0 | I166: 152 | K166: 7 | L166: 0.01534178811 | M166: 0 | P166: 152 | R166: 7 | S166: 0.0412404713 | T166: 0
B167: 153 | C167: 154 | D167: 19 | E167: 0.1730433257 | F167: 0 | I167: 153 | K167: 8 | L167: 0.0200413159 | M167: 0 | P167: 153 | R167: 8 | S167: 0.05139628301 | T167: 0
B168: 154 | C168: 155 | D168: 20 | E168: 0.1989844673 | F168: 0 | I168: 154 | K168: 9 | L168: 0.02577072322 | M168: 0 | P168: 154 | R168: 9 | S168: 0.06305663479 | T168: 0
B169: 155 | C169: 156 | D169: 21 | E169: 0.2266984132 | F169: 0 | I169: 155 | K169: 10 | L169: 0.03267977914 | M169: 0 | P169: 155 | R169: 10 | S169: 0.07631612789 | T169: 0
B170: 156 | C170: 157 | D170: 0 | E170: 0.0005347586513 | F170: 0 | I170: 156 | K170: 11 | L170: 0.04092080456 | M170: 0 | P170: 156 | R170: 11 | S170: 0.09124958803 | T170: 0
B171: 157 | C171: 158 | D171: 1 | E171: 0.001263776421 | F171: 0 | I171: 157 | K171: 12 | L171: 0.05064373847 | M171: 0 | P171: 157 | R171: 12 | S171: 0.1079071804 | T171: 0
B172: 158 | C172: 159 | D172: 2 | E172: 0.002245580559 | F172: 0 | I172: 158 | K172: 13 | L172: 0.06199036992 | M172: 0 | P172: 158 | R172: 13 | S172: 0.1263099109 | T172: 0
B173: 159 | C173: 160 | D173: 3 | E173: 0.003551805741 | F173: 0 | I173: 159 | K173: 14 | L173: 0.07508792093 | M173: 0 | P173: 159 | R173: 0 | S173: 0.002377912025 | T173: 0
B174: 160 | C174: 161 | D174: 4 | E174: 0.005268597795 | F174: 0 | G174: =IF(F174<>0,"修繕","") ->  | I174: 160 | K174: 15 | L174: 0.09004224486 | M174: 0 | N174: =IF(M174<>0,"修繕","") ->  | P174: 160 | R174: 1 | S174: 0.005326721693 | T174: 0 | U174: =IF(T174<>0,"修繕","") -> 
B175: =B174+1 -> 161 | C175: 162 | D175: =D174+1 -> 5 | E175: 0.007497668205 | F175: 0 | I175: =I174+1 -> 161 | K175: =K174+1 -> 16 | L175: 0.1069309753 | M175: 0 | P175: =P174+1 -> 161 | R175: =R174+1 -> 2 | S175: 0.00894845075 | T175: 0
B176: 162 | C176: 163 | D176: 6 | E176: 0.01035681417 | F176: 0 | I176: 162 | K176: 17 | L176: 0.1257970156 | M176: 0 | P176: 162 | R176: 3 | S176: 0.01335403417 | T176: 0
B177: 163 | C177: 164 | D177: 7 | E177: 0.0139797056 | F177: 0 | I177: 163 | K177: 18 | L177: 0.1466427907 | M177: 0 | P177: 163 | R177: 4 | S177: 0.01866176828 | T177: 0
B178: 164 | C178: 165 | D178: 8 | E178: 0.01851474181 | F178: 0 | I178: 164 | K178: 19 | L178: 0.1694256838 | M178: 0 | P178: 164 | R178: 5 | S178: 0.02499511325 | T178: 0
B179: 165 | C179: 166 | D179: 9 | E179: 0.02412280176 | F179: 0 | I179: 165 | K179: 20 | L179: 0.1940550498 | M179: 0 | P179: 165 | R179: 6 | S179: 0.03247983028 | T179: 0
B180: 166 | C180: 167 | D180: 10 | E180: 0.03097375474 | F180: 0 | I180: 166 | K180: 21 | L180: 0.2203911295 | M180: 0 | P180: 166 | R180: 7 | S180: 0.0412404713 | T180: 0
B181: 167 | C181: 168 | D181: 11 | E181: 0.03924166539 | F181: 0 | I181: 167 | K181: 22 | L181: 0.2482460906 | M181: 0 | P181: 167 | R181: 8 | S181: 0.05139628301 | T181: 0
B182: 168 | C182: 169 | D182: 12 | E182: 0.04909871658 | F182: 0 | I182: 168 | K182: 23 | L182: 0.2773872966 | M182: 0 | P182: 168 | R182: 9 | S182: 0.06305663479 | T182: 0
B183: 169 | C183: 170 | D183: 13 | E183: 0.06070798088 | F183: 0 | I183: 169 | K183: 24 | L183: 0.3075427609 | M183: 0 | P183: 169 | R183: 10 | S183: 0.07631612789 | T183: 0
B184: 170 | C184: 171 | D184: 14 | E184: 0.07421528985 | F184: 0 | I184: 170 | K184: 25 | L184: 0.3384085977 | M184: 0 | P184: 170 | R184: 11 | S184: 0.09124958803 | T184: 0
B185: 171 | C185: 172 | D185: 15 | E185: 0.08974056906 | F185: 0 | I185: 171 | K185: 26 | L185: 0.3696581373 | M185: 0 | P185: 171 | R185: 12 | S185: 0.1079071804 | T185: 0
B186: 172 | C186: 173 | D186: 16 | E186: 0.1073691135 | F186: 0 | I186: 172 | K186: 27 | L186: 0.4009522562 | M186: 0 | P186: 172 | R186: 13 | S186: 0.1263099109 | T186: 0
B187: 173 | C187: 174 | D187: 17 | E187: 0.1271433597 | F187: 0 | I187: 173 | K187: 28 | L187: 0.431950377 | M187: =VLOOKUP(K187,Rng更新率表,3,FALSE)/$L$2/100 -> 0.431950377 | N187: 修繕 | P187: 173 | R187: 0 | S187: 0.002377912025 | T187: 0
B188: 174 | C188: 175 | D188: 18 | E188: 0.1490557558 | F188: 0 | I188: 174 | K188: 0 | L188: 0.0006497371173 | M188: 0 | P188: 174 | R188: 1 | S188: 0.005326721693 | T188: 0
B189: 175 | C189: 176 | D189: 19 | E189: 0.1730433257 | F189: 0 | I189: 175 | K189: 1 | L189: 0.00151423687 | M189: 0 | P189: 175 | R189: 2 | S189: 0.00894845075 | T189: 0
B190: 176 | C190: =B190+1 -> 177 | D190: 20 | E190: =VLOOKUP(D190,Rng更新率表,2,FALSE)/$E$2/100 -> 0.1989844673 | F190: 0 | I190: 176 | K190: 2 | L190: =VLOOKUP(K190,Rng更新率表,3,FALSE)/$L$2/100 -> 0.002651983621 | M190: 0 | P190: 176 | R190: 3 | S190: =VLOOKUP(R190,Rng更新率表,4,FALSE)/$S$2/100 -> 0.01335403417 | T190: 0
B191: 177 | C191: 178 | D191: 21 | E191: 0.2266984132 | F191: 0 | I191: 177 | K191: 3 | L191: 0.004133068233 | M191: 0 | P191: 177 | R191: 4 | S191: 0.01866176828 | T191: 0
B192: 178 | C192: 179 | D192: 0 | E192: 0.0005347586513 | F192: 0 | I192: 178 | K192: 4 | L192: 0.006040142783 | M192: 0 | P192: 178 | R192: 5 | S192: 0.02499511325 | T192: 0
B193: 179 | C193: 180 | D193: 1 | E193: 0.001263776421 | F193: 0 | I193: 179 | K193: 5 | L193: 0.008469039266 | M193: 0 | P193: 179 | R193: 6 | S193: 0.03247983028 | T193: 0
B194: 180 | C194: 181 | D194: 2 | E194: 0.002245580559 | F194: 0 | I194: 180 | K194: 6 | L194: 0.01152891561 | M194: 0 | P194: 180 | R194: 7 | S194: 0.0412404713 | T194: 0
B195: 181 | C195: 182 | D195: 3 | E195: 0.003551805741 | F195: 0 | I195: 181 | K195: 7 | L195: 0.01534178811 | M195: 0 | P195: 181 | R195: 8 | S195: 0.05139628301 | T195: 0
B196: 182 | C196: 183 | D196: 4 | E196: 0.005268597795 | F196: 0 | I196: 182 | K196: 8 | L196: 0.0200413159 | M196: 0 | P196: 182 | R196: 9 | S196: 0.06305663479 | T196: 0
B197: 183 | C197: 184 | D197: 5 | E197: 0.007497668205 | F197: 0 | I197: 183 | K197: 9 | L197: 0.02577072322 | M197: 0 | P197: 183 | R197: 10 | S197: 0.07631612789 | T197: 0

Sheet 健全度 (hidden)
B5: 健全度評価結果
B8: 建築構造物 | L8: 単位：百万円 | N8: 土木構造物 | X8: 単位：百万円
B10: 健全資産 | N10: 健全資産
B11: 経年化資産 | N11: 経年化資産
B12: 老朽化資産 | N12: 老朽化資産
B14: 電気設備 | L14: 単位：百万円 | N14: 機械設備 | X14: 単位：百万円
B16: 健全資産 | N16: 健全資産
B17: 経年化資産 | N17: 経年化資産
B18: 老朽化資産 | N18: 老朽化資産
B20: 計装設備 | L20: 単位：百万円
B22: 健全資産
B23: 経年化資産
B24: 老朽化資産
B26: 合計 | L26: 単位：百万円
C27: =IF(C9="","",C9) ->  | D27: =IF(D9="","",D9) -> 
B28: 健全資産 | C28: =+C10+O10+C16+O16+C22 -> 0 | D28: 0 | E28: 0 | F28: 0 | G28: 0 | H28: 0 | I28: 0 | J28: 0 | K28: 0 | L28: 0
B29: 経年化資産 | C29: 0 | D29: 0 | E29: 0 | F29: 0 | G29: 0 | H29: 0 | I29: 0 | J29: 0 | K29: 0 | L29: 0
B30: 老朽化資産 | C30: 0 | D30: 0 | E30: 0 | F30: 0 | G30: 0 | H30: 0 | I30: 0 | J30: 0 | K30: 0 | L30: 0
C61: 浄水施設更新シミュレーター 水道技術研究センター 2011年10月
C62: 本シミュレーションは、シナリオによって、どの程度の違いが生じるのかイメージするためのツールであり、計算結果は実際の数量、金額を表すものではありません。

Sheet 影響水量 (hidden)
B9: ■リスク 影響水量
M11: 単位：ｍ3／日
C12: 区 分 | D12: =+Calc!AA5 -> 0 | E12: =Calc!AA10 -> 0 | F12: =Calc!AA15 -> 0 | G12: =Calc!AA20 -> 0 | H12: =Calc!AA25 -> 0 | I12: =Calc!AA30 -> 0 | J12: =Calc!AA35 -> 0 | K12: =Calc!AA40 -> 0 | L12: =Calc!AA45 -> 0 | M12: =Calc!AA50 -> 0
C13: 電気設備 | D13: =+Calc!AB5 -> 0 | E13: =Calc!AB10 -> 0 | F13: =Calc!AB15 -> 0 | G13: =Calc!AB20 -> 0 | H13: =Calc!AB25 -> 0 | I13: =Calc!AB30 -> 0 | J13: =Calc!AB35 -> 0 | K13: =Calc!AB40 -> 0 | L13: =Calc!AB45 -> 0 | M13: =Calc!AB50 -> 0
C14: 機械設備 | D14: =+Calc!AC5 -> 0 | E14: =Calc!AC10 -> 0 | F14: =Calc!AC15 -> 0 | G14: =Calc!AC20 -> 0 | H14: =Calc!AC25 -> 0 | I14: =Calc!AC30 -> 0 | J14: =Calc!AC35 -> 0 | K14: =Calc!AC40 -> 0 | L14: =Calc!AC45 -> 0 | M14: =Calc!AC50 -> 0
C15: 計装設備 | D15: =+Calc!AD5 -> 0 | E15: =Calc!AD10 -> 0 | F15: =Calc!AD15 -> 0 | G15: =Calc!AD20 -> 0 | H15: =Calc!AD25 -> 0 | I15: =Calc!AD30 -> 0 | J15: =Calc!AD35 -> 0 | K15: =Calc!AD40 -> 0 | L15: =Calc!AD45 -> 0 | M15: =Calc!AD50 -> 0
C16: 影響水量 | D16: =+Calc!AE5 -> 0 | E16: =Calc!AE10 -> 0 | F16: =Calc!AE15 -> 0 | G16: =Calc!AE20 -> 0 | H16: =Calc!AE25 -> 0 | I16: =Calc!AE30 -> 0 | J16: =Calc!AE35 -> 0 | K16: =Calc!AE40 -> 0 | L16: =Calc!AE45 -> 0 | M16: =Calc!AE50 -> 0
C17: 浄水能力 | D17: =+'入力情報(1)'!$H$23-影響水量!D16 -> 0 | E17: =+'入力情報(1)'!$H$23-影響水量!E16 -> 0 | F17: =+'入力情報(1)'!$H$23-影響水量!F16 -> 0 | G17: =+'入力情報(1)'!$H$23-影響水量!G16 -> 0 | H17: =+'入力情報(1)'!$H$23-影響水量!H16 -> 0 | I17: =+'入力情報(1)'!$H$23-影響水量!I16 -> 0 | J17: =+'入力情報(1)'!$H$23-影響水量!J16 -> 0 | K17: =+'入力情報(1)'!$H$23-影響水量!K16 -> 0 | L17: =+'入力情報(1)'!$H$23-影響水量!L16 -> 0 | M17: =+'入力情報(1)'!$H$23-影響水量!M16 -> 0
C43: 浄水施設更新シミュレーター 水道技術研究センター 2011年10月
C44: 本シミュレーションは、シナリオによって、どの程度の違いが生じるのかイメージするためのツールであり、計算結果は実際の数量、金額を
C45: 表すものではありません。

Sheet 損失額 (hidden)
B9: ■リスク 損失額
M17: 単位：百万円
C18: 区 分 | D18: =影響水量!D12 -> 0 | E18: =影響水量!E12 -> 0 | F18: =影響水量!F12 -> 0 | G18: =影響水量!G12 -> 0 | H18: =影響水量!H12 -> 0 | I18: =影響水量!I12 -> 0 | J18: =影響水量!J12 -> 0 | K18: =影響水量!K12 -> 0 | L18: =影響水量!L12 -> 0 | M18: =影響水量!M12 -> 0
C19: 損失額 | D19: =Calc!AF5 -> 0 | E19: =Calc!AF10 -> 0 | F19: =Calc!AF15 -> 0 | G19: =Calc!AF20 -> 0 | H19: =Calc!AF25 -> 0 | I19: =Calc!AF30 -> 0 | J19: =Calc!AF35 -> 0 | K19: =Calc!AF40 -> 0 | L19: =Calc!AF45 -> 0 | M19: =Calc!AF50 -> 0
C20: 影響水量 | D20: =影響水量!D16 -> 0 | E20: =影響水量!E16 -> 0 | F20: =影響水量!F16 -> 0 | G20: =影響水量!G16 -> 0 | H20: =影響水量!H16 -> 0 | I20: =影響水量!I16 -> 0 | J20: =影響水量!J16 -> 0 | K20: =影響水量!K16 -> 0 | L20: =影響水量!L16 -> 0 | M20: =影響水量!M16 -> 0
C47: 浄水施設更新シミュレーター 水道技術研究センター 2011年10月
C48: 本シミュレーションは、シナリオによって、どの程度の違いが生じるのかイメージするためのツールであり、計算結果は実際の数量、金額を
C49: 表すものではありません。

Sheet 修繕更新費用S1 (hidden)
B9: ■修繕及び更新費用
D11: シナリオ１： | E11: 更新しない場合の設備修繕費
N14: 単位：百万円
C15: 区分 | N15: 計 | R15: 区分 | S15: 2064年～2068年 | T15: 2069年～2073年 | U15: 2074年～2078年 | V15: 2079年～2083年 | W15: 2084年～2088年 | X15: 2089年～2093年 | Y15: 2094年～2098年 | Z15: 2099年～2103年 | AA15: 2104年～2108年 | AB15: 2109年～2113年
C16: 電気 | N16: =SUM(D16:M16) -> 0
C17: 機械 | N17: =SUM(D17:M17) -> 0
C18: 計装 | N18: =SUM(D18:M18) -> 0
C19: 計 | D19: =SUM(D16:D18) -> 0 | E19: 0 | F19: 0 | G19: 0 | H19: 0 | I19: 0 | J19: 0 | K19: 0 | L19: 0 | M19: 0 | N19: =SUM(D19:M19) -> 0
C52: 浄水施設更新シミュレーター 水道技術研究センター 2011年10月
C53: 本シミュレーションは、シナリオによって、どの程度の違いが生じるのかイメージするためのツールであり、計算結果は実際の数量、金額を
C54: 表すものではありません。

Sheet 修繕更新費用S2 (hidden)
B9: ■修繕及び更新費用
D11: シナリオ２： | E11: 現在と同じフロー・水量で更新、使用年数はメンテナンスレベルから算出 | S11: ※51年～100年の表は、表示のみで印刷されません
N14: 単位：百万円 | S14: 【51年～100年】
C15: 区分 | N15: 計 | T15: 区分
B16: 更新費用 | C16: 建築 | N16: =SUM(D16:M16) -> 0 | S16: 更新費用 | T16: 建築
C17: 土木 | N17: 0 | T17: 土木
C18: 電気 | N18: 0 | T18: 電気
C19: 機械 | N19: 0 | T19: 機械
C20: 計装 | N20: 0 | T20: 計装
B21: 修繕費用 | C21: 電気 | N21: 0 | S21: 修繕費用 | T21: 電気
C22: 機械 | N22: 0 | T22: 機械
C23: 計装 | N23: 0 | T23: 計装
B24: 計 | D24: =SUM(D16:D23) -> 0 | E24: =SUM(E16:E23) -> 0 | F24: 0 | G24: 0 | H24: 0 | I24: 0 | J24: 0 | K24: 0 | L24: 0 | M24: 0 | N24: =SUM(D24:M24) -> 0
B49: 浄水施設更新シミュレーター 水道技術研究センター 2011年10月
B50: 本シミュレーションは、シナリオによって、どの程度の違いが生じるのかイメージするためのツールであり、計算結果は実際の数量、金額を
B51: 表すものではありません。
B52: 本シミュレータは浄水場の全面更新を行う前提で50年間の設備費、運転費を算出するものであるが、
B53: 土木、建築設備の実耐用年数が100年近くになる場合もあるため、条件によっては、土木、建築の更新が一度も発生しない計算結果となる。
B54: そこで、51年～100年の計算結果（土木、建築の更新が1回は発生）を参考値として表示することとした。

Sheet 修繕更新費用S3 (hidden)
B9: ■修繕及び更新費用
D11: シナリオ３： | E11: 希望フローで更新、水量は現在と同じ、使用年数はメンテナンスレベルから算出
N14: 単位：百万円
C15: 区分 | N15: 計
B16: 更新費用 | C16: 建築 | N16: =SUM(D16:M16) -> 0
C17: 土木 | N17: 0
C18: 電気 | N18: 0
C19: 機械 | N19: 0
C20: 計装 | N20: 0
B21: 修繕費用 | C21: 電気 | N21: 0
C22: 機械 | N22: 0
C23: 計装 | N23: 0
B24: 計 | D24: =SUM(D16:D23) -> 0 | E24: 0 | F24: 0 | G24: 0 | H24: 0 | I24: 0 | J24: 0 | K24: 0 | L24: 0 | M24: 0 | N24: 0
B49: 浄水施設更新シミュレーター 水道技術研究センター 2011年10月
B50: 本シミュレーションは、シナリオによって、どの程度の違いが生じるのかイメージするためのツールであり、計算結果は実際の数量、金額を
B51: 表すものではありません。

Sheet 修繕更新費用S4 (hidden)
B9: ■修繕及び更新費用
D11: シナリオ４： | E11: 現状のフローで更新、水量は将来予測、使用年数はメンテナンスレベルから算出 | S11: ※51年～100年の表は、表示のみで印刷されません
N14: 単位：百万円 | S14: 【51年～100年】
C15: 区分 | N15: 計 | T15: 区分
B16: 更新費用 | C16: 建築 | N16: =SUM(D16:M16) -> 0 | S16: 更新費用 | T16: 建築
C17: 土木 | N17: 0 | T17: 土木
C18: 電気 | N18: 0 | T18: 電気
C19: 機械 | N19: 0 | T19: 機械
C20: 計装 | N20: 0 | T20: 計装
B21: 修繕費用 | C21: 電気 | N21: 0 | S21: 修繕費用 | T21: 電気
C22: 機械 | N22: 0 | T22: 機械
C23: 計装 | N23: 0 | T23: 計装
B24: 計 | D24: =SUM(D16:D23) -> 0 | E24: 0 | F24: 0 | G24: 0 | H24: 0 | I24: 0 | J24: 0 | K24: 0 | L24: 0 | M24: 0 | N24: 0
B49: 浄水施設更新シミュレーター 水道技術研究センター 2011年10月
B50: 本シミュレーションは、シナリオによって、どの程度の違いが生じるのかイメージするためのツールであり、計算結果は実際の数量、金額を
B51: 表すものではありません。
B52: 本シミュレータは浄水場の全面更新を行う前提で50年間の設備費、運転費を算出するものであるが、
B53: 土木、建築設備の実耐用年数が100年近くになる場合もあるため、条件によっては、土木、建築の更新が一度も発生しない計算結果となる。
B54: そこで、51年～100年の計算結果（土木、建築の更新が1回は発生）を参考値として表示することとした。

Sheet 修繕更新費用S5 (hidden)
B9: ■修繕及び更新費用
D11: シナリオ５： | E11: 希望フローで更新、水量は将来予測、使用年数はメンテナンスレベルから算出
N14: 単位：百万円
C15: 区分 | N15: 計
B16: 更新費用 | C16: 建築 | N16: =SUM(D16:M16) -> 0
C17: 土木 | N17: 0
C18: 電気 | N18: 0
C19: 機械 | N19: 0
C20: 計装 | N20: 0
B21: 修繕費用 | C21: 電気 | N21: 0
C22: 機械 | N22: 0
C23: 計装 | N23: 0
B24: 計 | D24: =SUM(D16:D23) -> 0 | E24: 0 | F24: 0 | G24: 0 | H24: 0 | I24: 0 | J24: 0 | K24: 0 | L24: 0 | M24: 0 | N24: 0
B49: 浄水施設更新シミュレーター 水道技術研究センター 2011年10月
B50: 本シミュレーションは、シナリオによって、どの程度の違いが生じるのかイメージするためのツールであり、計算結果は実際の数量、金額を
B51: 表すものではありません。

Sheet 出力まとめの表 (hidden)
D4: =+"浄水場名："&'入力情報(1)'!G22 -> 浄水場名：
D5: 50年間の費用で比較
D6: 設備ごとの係数 | E6: 建築構造物 | F6: 土木構造物 | G6: 電気設備 | H6: 機械設備 | I6: 計装設備
D7: 延長係数β | E7: =RngEnchou建築 -> 1.308934093 | F7: =RngEnchou土木 -> 1.346417436 | G7: =RngEnchou電気 -> 1.331730034 | H7: =RngEnchou機械 -> 1.370990442 | I7: =RngEnchou計装 -> 1.333709096
D9: シナリオの条件 | E9: シナリオ1 （修繕のみ） | F9: シナリオ２ （現状と同じフロー・ 規模で更新） | G9: シナリオ3 （希望フロー・ 同じ規模で更新） | H9: シナリオ4 （現状と同じフロー・ 将来予測規模で更新） | I9: シナリオ5 （希望フロー・ 将来予測規模で更新） | T9: s | U9: s | W9: s
D10: 実際の浄水量 m3/日 | E10: =+'入力情報(1)'!H23 -> 0 | F10: =+'入力情報(1)'!H23 -> 0 | G10: =+'入力情報(1)'!H23 -> 0 | H10: =+'入力情報(2)'!H6 -> 0 | I10: =+'入力情報(2)'!H6 -> 0 | T10: シナリオ1 | U10: シナリオ２ | V10: シナリオ3 | W10: シナリオ4 | X10: シナリオ5
D11: 浄水フロー | E11: =IF(+'入力情報(1)'!H28="","",+'入力情報(1)'!H28) ->  | F11: =IF(+'入力情報(1)'!H28="","",+'入力情報(1)'!H28) ->  | G11: =IF(+'入力情報(2)'!G26="","",+'入力情報(2)'!G26) ->  | H11: =IF(+'入力情報(1)'!H28="","",+'入力情報(1)'!H28) ->  | I11: =IF(+'入力情報(2)'!G26="","",+'入力情報(2)'!G26) -> 
D12: 粉末炭の有無 | E12: =IF('入力情報(1)'!H29="","",'入力情報(1)'!H29) ->  | F12: =IF('入力情報(1)'!H29="","",'入力情報(1)'!H29) ->  | G12: =+Calc!G37 ->  | H12: =IF('入力情報(1)'!H29="","",'入力情報(1)'!H29) ->  | I12: =+Calc!G37 -> 
D13: 修繕費 | E13: =+T13/100000000 -> 0 | F13: 0 | G13: 0 | H13: 0 | I13: 0 | J13: 億円 | S13: 修繕費 | T13: =SUM(修繕更新費用S1!N19) -> 0 | U13: =SUM(修繕更新費用S2!N21:N23) -> 0 | V13: =SUM(修繕更新費用S3!N21:N23) -> 0 | W13: =SUM(修繕更新費用S4!N21:N23) -> 0 | X13: =SUM(修繕更新費用S5!N21:N23) -> 0
D14: 更新費 | E14: 0 | F14: 0 | G14: 0 | H14: 0 | I14: 0 | J14: 億円 | S14: 更新費 | T14: 0 | U14: =SUM(修繕更新費用S2!N16:N20) -> 0 | V14: =SUM(修繕更新費用S3!N16:N20) -> 0 | W14: =SUM(修繕更新費用S4!N16:N20) -> 0 | X14: =SUM(修繕更新費用S5!N16:N20) -> 0 | Y14: 運転費１年単価
D15: 運転費（人件費込み） | E15: =+RngUnten1/100000000 -> 0 | F15: =+RngUnten2/100000000 -> 0 | G15: =+RngUnten3/100000000 -> 0 | H15: =+RngUnten4/100000000 -> 0 | I15: =+RngUnten5/100000000 -> 0 | J15: 億円 | S15: 運転費（人件費込み）
D16: 小計１ | E16: =SUM(E13:E15) -> 0 | F16: =SUM(F13:F15) -> 0 | G16: =SUM(G13:G15) -> 0 | H16: =SUM(H13:H15) -> 0 | I16: =SUM(I13:I15) -> 0 | J16: 億円 | S16: 小計１ | T16: =SUM(T13:T15) -> 0 | U16: =SUM(U13:U15) -> 0 | V16: =SUM(V13:V15) -> 0 | W16: =SUM(W13:W15) -> 0 | X16: =SUM(X13:X15) -> 0
D18: リスク（損失額） 年ごとの影響水量を損失額に換算したものを50年分計算 | E18: =+T18/100000000 -> 0 | F18: 0 | G18: 0 | H18: 0 | I18: 0 | J18: 億円 | S18: リスク（損失額） | T18: =SUM(Calc!AF5:AF54) -> 0
D19: 高度処理による便益 | E19: 0 | F19: 0 | G19: =+V19/100000000 -> 0 | H19: 0 | I19: =+X19/100000000 -> 0 | J19: 億円 | S19: 高度処理による便益 | V19: =IF(プレビュー!E64="✓",IF(AND(Calc!I34=0,Calc!J34>=1),+'入力情報(1)'!H23/0.34*0.128*33000*50*-1,0),0) -> 0 | X19: =IF(プレビュー!E66="✓",IF(AND(Calc!I34=0,Calc!J34>=1),+'入力情報(2)'!H6/0.34*0.128*33000*50*-1,0),0) -> 0
D20: クリプトスポリジウム対策の便益 | E20: 0 | F20: 0 | G20: =+V20/100000000 -> 0 | H20: 0 | I20: =+X20/100000000 -> 0 | J20: 億円 | S20: クリプトスポリジウム対策の便益 | V20: =IF(プレビュー!E64="✓",IF(AND(Calc!I41=0,Calc!J41>=1),+'入力情報(1)'!H23/0.34*1.5*0.000001*10000000*50*-1,0),0) -> 0 | X20: =IF(プレビュー!E66="✓",IF(AND(Calc!I41=0,Calc!J41>=1),+'入力情報(2)'!H6/0.34*1.5*0.000001*10000000*50*-1,0),0) -> 0
D21: 小計2 | E21: =+T21/100000000 -> 0 | F21: =+U21/100000000 -> 0 | G21: =+V21/100000000 -> 0 | H21: =+W21/100000000 -> 0 | I21: =+X21/100000000 -> 0 | J21: 億円 | S21: 小計2 | T21: =SUM(T18:T20) -> 0 | U21: =SUM(U18:U20) -> 0 | V21: =SUM(V18:V20) -> 0 | W21: =SUM(W18:W20) -> 0 | X21: =SUM(X18:X20) -> 0
D23: 総計（小計１＋小計２） | E23: =+T23/100000000 -> 0 | F23: =+U23/100000000 -> 0 | G23: =+V23/100000000 -> 0 | H23: =+W23/100000000 -> 0 | I23: =+X23/100000000 -> 0 | J23: 億円 | S23: 総計（小計１＋小計２） | T23: =+T16+T21 -> 0 | U23: =+U16+U21 -> 0 | V23: =+V16+V21 -> 0 | W23: =+W16+W21 -> 0 | X23: =+X16+X21 -> 0
D74: 浄水施設更新シミュレーター 水道技術研究センター 2011年10月
D75: 本シミュレーションは、シナリオによって、どの程度の違いが生じるのかイメージするためのツールであり、計算結果は実際の数量、金額を
D76: 表すものではありません。

Sheet 系列の集計 (hidden)
E2: ← 合計のみを表示する
D5: 50年間の費用で比較
D6: シナリオの条件 | E6: シナリオ1 （修繕のみ） | F6: シナリオ２ （現状と同じフロー・ 規模で更新） | G6: シナリオ3 （希望フロー・ 同じ規模で更新） | H6: シナリオ4 （現状と同じフロー・ 将来予測規模で更新） | I6: シナリオ5 （希望フロー・ 将来予測規模で更新）
D7: ｼﾅﾘｵ選択ｶｳﾝﾄ | E7: =COUNT(E10:E14) -> 0 | F7: =COUNT(F10:F14) -> 0 | G7: =COUNT(G10:G14) -> 0 | H7: =COUNT(H10:H14) -> 0 | I7: =COUNT(I10:I14) -> 0
D9: 修繕費 | E9: =SUM(E10:E14) -> 0 | F9: =SUM(F10:F14) -> 0 | G9: =SUM(G10:G14) -> 0 | H9: =SUM(H10:H14) -> 0 | I9: =SUM(I10:I14) -> 0 | J9: 億円 | S9: 行非表示判定
S10: =COUNT(E10:I10) -> 0
S11: =COUNT(E11:I11) -> 0
S12: =COUNT(E12:I12) -> 0
S13: =COUNT(E13:I13) -> 0
S14: =COUNT(E14:I14) -> 0
D15: 更新費 | E15: =SUM(E16:E20) -> 0 | F15: =SUM(F16:F20) -> 0 | G15: =SUM(G16:G20) -> 0 | H15: =SUM(H16:H20) -> 0 | I15: =SUM(I16:I20) -> 0 | J15: 億円
D21: 運転費（人件費込み） | E21: =SUM(E22:E26) -> 0 | F21: =SUM(F22:F26) -> 0 | G21: =SUM(G22:G26) -> 0 | H21: =SUM(H22:H26) -> 0 | I21: =SUM(I22:I26) -> 0 | J21: 億円
D27: 小計１ | E27: =+E9+E15+E21 -> 0 | F27: =+F9+F15+F21 -> 0 | G27: =+G9+G15+G21 -> 0 | H27: =+H9+H15+H21 -> 0 | I27: =+I9+I15+I21 -> 0 | J27: 億円
D29: リスク（損失額） | E29: =SUM(E30:E34) -> 0 | F29: =SUM(F30:F34) -> 0 | G29: =SUM(G30:G34) -> 0 | H29: =SUM(H30:H34) -> 0 | I29: =SUM(I30:I34) -> 0 | J29: 億円
D35: 高度処理による便益 | E35: =SUM(E36:E40) -> 0 | F35: =SUM(F36:F40) -> 0 | G35: =SUM(G36:G40) -> 0 | H35: =SUM(H36:H40) -> 0 | I35: =SUM(I36:I40) -> 0 | J35: 億円
D41: クリプトスポリジウム対策の便益 | E41: =SUM(E42:E46) -> 0 | F41: =SUM(F42:F46) -> 0 | G41: =SUM(G42:G46) -> 0 | H41: =SUM(H42:H46) -> 0 | I41: =SUM(I42:I46) -> 0 | J41: 億円
D47: 小計2 | E47: =+E29+E35+E41 -> 0 | F47: =+F29+F35+F41 -> 0 | G47: =+G29+G35+G41 -> 0 | H47: =+H29+H35+H41 -> 0 | I47: =+I29+I35+I41 -> 0 | J47: 億円
D49: 総計（小計１＋小計２） | E49: =+E27+E47 -> 0 | F49: =+F27+F47 -> 0 | G49: =+G27+G47 -> 0 | H49: =+H27+H47 -> 0 | I49: =+I27+I47 -> 0 | J49: 億円
D100: 浄水施設更新シミュレーター 水道技術研究センター 2011年10月
D101: 本シミュレーションは、シナリオによって、どの程度の違いが生じるのかイメージするためのツールであり、計算結果は実際の数量、金額を
D102: 表すものではありません。

Sheet 設備費と運転費 (hidden)
B2: 前提条件 | C2: 分類No.2100（凝集・沈澱＋急速ろ過）、浄水量20,000m3/dを基準とする。
B3: この時の | C3: 設備費基準額 | D3: 159900 | E3: 万円/20000m3・d | G3: e-WaterⅡ最終報告書、pp.Ⅱ-201～Ⅱ-214より読みとったもの
C4: 設備費の規模係数k1 | D4: =(3201-(0.01*D3))/(100000-20000) -> 0.020025 | F4: 5,000m3/dから100,000m3/dの 原単位の変化率 ＝2.0÷(100000-5000) | I4: No.2100のみ適用
C5: 設備費規模計算式の切片 | D5: =3201-D4*100000 -> 1198.5
C7: 基準給水原価 | D7: 170 | E7: 円/m3 | F7: マスターの変更がなければ180円/m3を基本とする。水道統計の全国平均180円/m3（H17年度） | H7: 浄水処理分以外も含まれるが、内訳中のその他を加味しないことで相殺されると仮定
C9: 変動費係数 | D9: 0.13 | F9: マスターの変更がなければ、給水原価の10%とする（水道統計H17年度全国平均）
C10: 運転費単価の変動費分 （人件費を除く） | D10: =D7*D9 -> 22.1 | E10: 円/m3 | F10: 給水原価×変動費係数
C12: 膜ろ過を含まない運転費単価 の人件費分 | D12: =D7*0.15 -> 25.5 | E12: 円/m3 | F12: マスターの変更がなければ、給水原価×0.15で計算（水道統計H17年度全国平均）
C14: 膜ろ過を含む運転費単価 の人件費分 | D14: =D7*0.12 -> 20.4 | E14: 円/m3 | F14: マスターの変更がなければ、給水原価×0.12で計算（水道統計H17年度全国平均）
B15: 浄水量 | C15: 現状もしくは将来予測 | D15: 12000 | E15: m3/d | F15: "002"または"016"を転記 | H15: 金額補正係数 | I15: 1
N16: フロー毎に按分率を設定する。按分率も実績からの計算値とする.
N17: e-WaterⅡの資料から、電気を水量変数の計算式で求め、膜ろ過以外は建築、計装、機械は各水量規模の平均値とした。
B18: 浄水フロー毎、入力浄水量における設備費の計算 | N18: 膜ろ過については建築、計装、土木を平均値とした。膜ろ過以外の場合の土木＝1-その他の合計、膜ろ過の場合の機械＝1-その他の合計とした。
B19: 分類No. | C19: 浄水フロー | E19: 相対設備費 20,000m3/d | F19: 相対設備費 100,000m3/d | G19: 入力浄水量（D15）での相対設備費 | H19: 浄水施設全体 万円 | I19: 電気 万円 | J19: 機械 万円 | K19: 計装 万円 | L19: 土木 万円 | M19: 建築 万円 | N19: 電気 | O19: 機械 | P19: 計装 | Q19: 土木 | R19: 建築 | T19: 電気按分率の計算式の修正
B20: 1100 | C20: - | D20: 膜ろ過 | E20: 1.374835 | F20: 1.499715 | G20: =$D$15*(F20-E20)/80000+(E20-(F20-E20)/80000*20000) -> 1.362347 | H20: =$H$22*G20 -> 196014.4864 | I20: =$H20*N20 -> 79973.91043 | J20: =$H20*O20 -> 84678.25811 | K20: 1960.144864 | L20: 11760.86918 | M20: 17641.30377 | N20: =0.42-0.0012*((IF($D$15<2000,2000,$D$15)-2000)/1000) -> 0.408 | O20: =1-N20-P20-Q20-R20 -> 0.432 | P20: 0.01 | Q20: 0.06 | R20: 0.09 | S20: =SUM(N20:R20) -> 1 | T20: 修正なし
B21: 1200 | C21: 凝集 | D21: 膜ろ過 | E21: 1.517675 | F21: 1.62932 | G21: =$D$15*(F21-E21)/80000+(E21-(F21-E21)/80000*20000) -> 1.5065105 | H21: =$H$22*G21 -> 216756.7307 | I21: =$H21*N21 -> 86269.17883 | J21: 91471.34037 | K21: 2167.567307 | L21: 17340.53846 | M21: 19508.10577 | N21: =0.41-0.0012*(IF($D$15<2000,2000,$D$15)-2000)/1000 -> 0.398 | O21: 0.422 | P21: 0.01 | Q21: 0.08 | R21: 0.09 | S21: 1 | T21: 修正なし
B22: 2100 | C22: 凝集沈澱 | D22: 急速ろ過 | E22: 0.99988 | F22: 0.99981 | G22: 1 | H22: =(D4*D15+D5)*100*I15 -> 143880 | I22: 45753.84 | J22: 64630.896 | K22: 1438.8 | L22: 26301.264 | M22: 5755.2 | N22: =IF(IF($D$15<2000,2000,$D$15)>44000,0.344-0.0026*(44000-2000)/1000,0.344-0.0026*(IF($D$15<2000,2000,$D$15)-2000)/1000) -> 0.318 | O22: 0.4492 | P22: 0.01 | Q22: 0.1828 | R22: 0.04 | S22: 1 | T22: 浄水量>44000の場合、浄水量＝44000
B23: 2110 | C23: 粉末炭+凝集沈殿 | D23: 急速ろ過 | E23: 1.196285 | F23: 1.166445 | G23: =$D$15*(F23-E23)/80000+(E23-(F23-E23)/80000*20000) -> 1.199269 | H23: =$H$22*G23 -> 172550.8237 | I23: 52628.00123 | J23: 77647.87067 | K23: 1725.508237 | L23: 28470.88591 | M23: 12078.55766 | N23: =IF(IF($D$15<2000,2000,$D$15)>44000,0.33-0.0025*(44000-2000)/1000,0.33-0.0025*(IF($D$15<2000,2000,$D$15)-2000)/1000) -> 0.305 | O23: 0.45 | P23: 0.01 | Q23: 0.165 | R23: 0.07 | S23: 1 | T23: 浄水量>44000の場合、浄水量＝44000
B24: 2200 | C24: 凝集沈殿 | D24: 膜ろ過 | E24: 1.85692 | F24: 2.018135 | G24: 1.8407985 | H24: 264854.0882 | I24: 97201.45036 | J24: 114681.8202 | K24: 2648.540882 | L24: 29133.9497 | M24: 21188.32705 | N24: =0.38-0.0013*(IF($D$15<2000,2000,$D$15)-2000)/1000 -> 0.367 | O24: 0.433 | P24: 0.01 | Q24: 0.11 | R24: 0.08 | S24: 1 | T24: 修正なし
B25: 2210 | C25: 粉末炭+凝集沈殿 | D25: 膜ろ過 | E25: 2.053325 | F25: 2.18477 | G25: 2.0401805 | H25: 293541.1703 | I25: 101858.7861 | J25: 127103.3268 | K25: 2935.411703 | L25: 35224.94044 | M25: 26418.70533 | N25: =0.36-0.0013*(IF($D$15<2000,2000,$D$15)-2000)/1000 -> 0.347 | O25: 0.433 | P25: 0.01 | Q25: 0.12 | R25: 0.09 | S25: 1 | T25: 修正なし
B26: 3000 | C26: 凝集 | D26: 急速ろ過 | E26: 0.660635 | F26: 0.610995 | G26: 0.665599 | H26: 95766.38412 | I26: 36391.22597 | J26: 40221.88133 | K26: 957.6638412 | L26: 13407.29378 | M26: 4788.319206 | N26: =IF(IF($D$15<2000,2000,$D$15)>52000,0.41-0.003*(52000-2000)/1000,0.41-0.003*(IF($D$15<2000,2000,$D$15)-2000)/1000) -> 0.38 | O26: 0.42 | P26: 0.01 | Q26: =1-N26-O26-P26-R26 -> 0.14 | R26: 0.05 | S26: 1 | T26: 浄水量>52000の場合、浄水量＝52000
B27: 5100 | C27: 凝集沈澱+粒状炭 | D27: 急速ろ過 | E27: 1.589095 | F27: 1.795955 | G27: 1.568409 | H27: 225662.6869 | I27: 72889.04788 | J27: 112831.3435 | K27: 2256.626869 | L27: 30915.78811 | M27: 6769.880608 | N27: =IF(IF($D$15<2000,2000,$D$15)>44000,0.35-0.0027*(44000-2000)/1000,0.35-0.0027*(IF($D$15<2000,2000,$D$15)-2000)/1000) -> 0.323 | O27: 0.5 | P27: 0.01 | Q27: =1-N27-O27-P27-R27 -> 0.137 | R27: 0.03 | S27: 1 | T27: 浄水量>44000の場合、浄水量＝44000
B28: 5200 | C28: 凝集沈澱+粒状炭 | D28: 膜ろ過 | E28: 2.446135 | F28: 2.81428 | G28: 2.4093205 | H28: 346653.0335 | I28: 125488.3981 | J28: 166393.4561 | K28: 3466.530335 | L28: 27038.93662 | M28: 24265.71235 | N28: =IF(IF($D$15<2000,2000,$D$15)>84000,0.38-0.0018*(84000-2000)/1000,0.38-0.0018*(IF($D$15<2000,2000,$D$15)-2000)/1000) -> 0.362 | O28: 0.48 | P28: 0.01 | Q28: 0.078 | R28: 0.07 | S28: 1 | T28: 浄水量>84000の場合、浄水量＝84000
B29: 6100 | C29: 凝集沈澱+オゾン+粒状炭 | D29: 急速ろ過 | E29: 2.089035 | F29: 2.388435 | G29: 2.059095 | H29: 296262.5886 | I29: 105469.4815 | J29: 142206.0425 | K29: 2962.625886 | L29: 33773.9351 | M29: 11850.50354 | N29: =IF(IF($D$15<2000,2000,$D$15)>58000,0.38-0.0024*(58000-2000)/1000,0.38-0.0024*(IF($D$15<2000,2000,$D$15)-2000)/1000) -> 0.356 | O29: 0.48 | P29: 0.01 | Q29: 0.114 | R29: 0.04 | S29: 1 | T29: 浄水量>58000の場合、浄水量＝58000
B30: 6200 | C30: 凝集沈澱+オゾン+粒状炭 | D30: 膜ろ過 | E30: 2.946075 | F30: 3.40676 | G30: 2.9000065 | H30: 417252.9352 | I30: 155635.3448 | J30: 200281.4089 | K30: 4172.529352 | L30: 27955.94666 | M30: 29207.70547 | N30: =IF(IF($D$15<2000,2000,$D$15)>94000,0.39-0.0017*(94000-2000)/1000,0.39-0.0017*(IF($D$15<2000,2000,$D$15)-2000)/1000) -> 0.373 | O30: 0.48 | P30: 0.01 | Q30: 0.067 | R30: 0.07 | S30: 1 | T30: 浄水量>94000の場合、浄水量＝94000
B31: 7100 | C31: 粒状炭 | D31: 膜ろ過 | E31: 1.981905 | F31: 2.29586 | G31: 1.9505095 | H31: 280639.3069 | I31: 110010.6083 | J31: 134706.8673 | K31: 2806.393069 | L31: 13470.68673 | M31: 19644.75148 | N31: =IF(IF($D$15<2000,2000,$D$15)>96000,0.41-0.0018*(96000-2000)/1000,0.41-0.0018*(IF($D$15<2000,2000,$D$15)-2000)/1000) -> 0.392 | O31: 0.48 | P31: 0.01 | Q31: 0.048 | R31: 0.07 | S31: 1 | T31: 浄水量>96000の場合、浄水量＝96000
B32: 7200 | C32: 凝集+粒状炭 | D32: 膜ろ過 | E32: 2.10689 | F32: 2.425465 | G32: 2.0750325 | H32: 298555.6761 | I32: 117033.825 | J32: 140321.1678 | K32: 2985.556761 | L32: 17316.22921 | M32: 20898.89733 | N32: =IF(IF($D$15<2000,2000,$D$15)>96000,0.41-0.0018*(96000-2000)/1000,0.41-0.0018*(IF($D$15<2000,2000,$D$15)-2000)/1000) -> 0.392 | O32: 0.47 | P32: 0.01 | Q32: 0.058 | R32: 0.07 | S32: 1 | T32: 浄水量>96000の場合、浄水量＝96000
B33: 7300 | C33: オゾン+粒状炭 | D33: 膜ろ過 | E33: 2.46399 | F33: 2.88834 | G33: 2.421555 | H33: 348413.3334 | I33: 140410.5734 | J33: 163754.2667 | K33: 3484.133334 | L33: 16375.42667 | M33: 24388.93334 | N33: =0.42-0.0017*(IF($D$15<2000,2000,$D$15)-2000)/1000 -> 0.403 | O33: 0.47 | P33: 0.01 | Q33: 0.047 | R33: 0.07 | S33: 1 | T33: 修正なし
N34: ※2000㎥以下は2000㎥として計算。100000m3以上は対象外。
N35: ※膜ろ過は電機・機械で変動、急ろ・粒状炭は土木・電機で変動させる。
B36: 浄水フロー毎、入力浄水量における運転費の計算
B37: 分類No. | C37: 浄水フロー | E37: 相対運転費 20,000m3/d | F37: 相対運転費 100,000m3/d | G37: 入力浄水量（D15）での相対運転費 | H37: 薬品、電力、消耗品費等 円/m3-浄水 | I37: 粉炭係数を加味した薬品、電力、消耗品費等 円/m3-浄水 | J37: 粉炭係数を加味した運転費＝（薬品+電力+消耗品等+人件費） 円/m3
B38: 1100 | C38: - | D38: 膜ろ過 | E38: 2.205126 | F38: 1.3297875 | G38: =$D$15*(F38-E38)/80000+(E38-(F38-E38)/80000*20000) -> 2.29265985 | H38: =$H$40*G38 -> 50.66778268 | I38: =H38 -> 50.66778268 | J38: =$D$14+I38 -> 71.06778268
B39: 1200 | C39: 凝集 | D39: 膜ろ過 | E39: 2.615382 | F39: 1.702128 | G39: =$D$15*(F39-E39)/80000+(E39-(F39-E39)/80000*20000) -> 2.7067074 | H39: =$H$40*G39 -> 59.81823354 | I39: =H39 -> 59.81823354 | J39: =$D$14+I39 -> 80.21823354
B40: 2100 | C40: 凝集沈澱 | D40: 急速ろ過 | E40: 0.999999 | F40: 1.0000002 | G40: 1 | H40: =D10 -> 22.1 | I40: 22.1 | J40: =$D$12+I40 -> 47.6
B41: 2110 | C41: 粉末炭+凝集沈殿 | D41: 急速ろ過 | E41: 5.1282 | F41: 5.1595755 | G41: =$D$15*(F41-E41)/80000+(E41-(F41-E41)/80000*20000) -> 5.12506245 | H41: =$H$40*G41 -> 113.2638801 | I41: =(H41-H40)*$D$53+H40 -> 22.1 | J41: =$D$12+I41 -> 47.6
B42: 2200 | C42: 凝集沈殿 | D42: 膜ろ過 | E42: 2.615382 | F42: 1.7553195 | G42: 2.70138825 | H42: =$H$40*G42 -> 59.70068033 | I42: 59.70068033 | J42: =$D$14+I42 -> 80.10068032
B43: 2210 | C43: 粉末炭+凝集沈殿 | D43: 膜ろ過 | E43: 6.769224 | F43: 5.9042565 | G43: 6.85572075 | H43: 151.5114286 | I43: =(H43-H42)*$D$53+H42 -> 59.70068033 | J43: =$D$14+I43 -> 80.10068032
B44: 3000 | C44: 凝集 | D44: 急速ろ過 | E44: 0.974358 | F44: 0.957447 | G44: 0.9760491 | H44: 21.57068511 | I44: 21.57068511 | J44: =$D$12+I44 -> 47.07068511
B45: 5100 | C45: 凝集沈澱+粒状炭 | D45: 急速ろ過 | E45: 2.30769 | F45: 2.2872345 | G45: 2.30973555 | H45: 51.04515565 | I45: 51.04515565 | J45: =$D$12+I45 -> 76.54515566
B46: 5200 | C46: 凝集沈澱+粒状炭 | D46: 膜ろ過 | E46: 3.948714 | F46: 3.085107 | G46: 4.0350747 | H46: 89.17515087 | I46: 89.17515087 | J46: =$D$14+I46 -> 109.5751509
B47: 6100 | C47: 凝集沈澱+オゾン+粒状炭 | D47: 急速ろ過 | E47: 5.999994 | F47: 3.3510645 | G47: 6.26488695 | H47: 138.4540016 | I47: 138.4540016 | J47: =$D$12+I47 -> 163.9540016
B48: 6200 | C48: 凝集沈澱+オゾン+粒状炭 | D48: 膜ろ過 | E48: 5.589738 | F48: 4.0957455 | G48: 5.73913725 | H48: 126.8349332 | I48: 126.8349332 | J48: =$D$14+I48 -> 147.2349332
B49: 7100 | C49: 粒状炭 | D49: 膜ろ過 | E49: 3.487176 | F49: 2.659575 | G49: 3.5699361 | H49: 78.89558781 | I49: 78.89558781 | J49: =$D$14+I49 -> 99.29558781
B50: 7200 | C50: 凝集+粒状炭 | D50: 膜ろ過 | E50: 3.897432 | F50: 3.085107 | G50: 3.9786645 | H50: 87.92848545 | I50: 87.92848545 | J50: =$D$14+I50 -> 108.3284855
B51: 7300 | C51: オゾン+粒状炭 | D51: 膜ろ過 | E51: 5.179482 | F51: 3.6702135 | G51: 5.33040885 | H51: 117.8020356 | I51: 117.8020356 | J51: =$D$14+I51 -> 138.2020356
H52: 水道統計より、電力、消耗品分は全国平均10%程度。給水原価基準値×0.1を浄水フローの違いによる人件費を除く変動費とした。 | I52: 粉末炭分は、e-WaterⅡでは10mg/L×365日で計算。粉炭の有無のみ異なるフローでの変動分の差分を全額粉炭とした。この粉炭分に入力情報での（注入率/10）×（日数/365）を乗じた。 | J52: 入力情報(1)の浄水フロー
C53: 粉末炭の運転費係数 | D53: 0 | H53: No.2100以外は基準浄水単価×入力浄水量相対運転費
D54: ｢21.希望ﾌﾛｰ｣で"粉末炭"を含んでいる場合
D55: ｢平均注入率｣と｢注入日数｣で算出
